{"text_format":"1","workbook":"xlsx","n_sheets":3,"sheets":["特殊健診等調査及び申込書（学生）","特殊健診等調査及び申込書 (記入例)","別表　化学物質一覧表（印刷用）"],"not_rendered":{"charts":0,"images":2,"macros":1,"external_links":0,"defined_names":3,"comments":0,"pivot_tables":0},"unopened":[],"bounds":{"document_bytes":16777216,"sheet_cells":100000,"rows_first":2000,"rows_last":500,"rows_between":2000,"halvings":0,"cell_chars":16384,"cell_head_chars":4096},"cells_cut":0,"cells_raw":0,"read":"whole","date_system":"1900"}

{"sheet":"特殊健診等調査及び申込書（学生）","index":0,"n_rows":156,"n_cols":39,"rows_kept":156,"cut":false,"hidden":false,"merged":[[44,1,44,8],[27,24,27,25],[27,20,27,22],[66,1,67,1],[66,2,66,6],[66,7,67,8],[66,17,67,19],[66,20,67,22],[66,23,67,25],[67,3,67,6],[49,15,49,16],[29,1,29,7],[48,3,48,6],[48,17,48,19],[48,23,48,25],[45,7,45,25],[49,11,49,12],[48,13,48,14],[49,13,49,14],[48,15,48,16],[46,1,47,1],[48,11,48,12],[46,11,47,12],[46,13,47,14],[46,15,47,16],[46,9,47,10],[41,14,41,24],[68,3,68,6],[68,17,68,19],[68,23,68,25],[66,11,67,12],[66,13,67,14],[66,15,67,16],[68,11,68,12],[68,13,68,14],[68,15,68,16],[66,9,67,10],[148,27,148,30],[31,9,31,10],[31,11,31,12],[31,13,31,15],[31,16,31,19],[32,9,32,10],[32,11,32,12],[32,13,32,15],[61,15,61,16],[72,17,72,19],[72,23,72,25],[56,9,57,10],[59,13,59,14],[59,15,59,16],[60,11,60,12],[60,13,60,14],[60,15,60,16],[72,11,72,12],[72,13,72,14],[72,15,72,16],[56,17,57,19],[61,17,61,19],[59,17,59,19],[60,17,60,19],[74,23,74,25],[65,7,65,25],[0,1,0,15],[21,3,21,25],[22,3,22,25],[23,3,23,25],[31,4,32,5],[32,1,32,2],[3,1,3,3],[4,1,4,3],[5,1,5,3],[6,1,6,3],[4,4,4,13],[34,17,34,18],[34,20,34,22],[34,24,34,25],[32,17,32,18],[33,9,33,25],[31,20,32,25],[38,22,38,23],[72,3,72,6],[3,14,4,16],[19,3,19,25],[18,3,18,25],[71,3,71,6],[71,17,71,19],[70,3,70,6],[70,17,70,19],[70,23,70,25],[69,11,69,12],[69,13,69,14],[69,15,69,16],[70,11,70,12],[70,13,70,14],[70,15,70,16],[71,11,71,12],[71,13,71,14],[71,15,71,16],[69,3,69,6],[69,17,69,19],[69,23,69,25],[71,23,71,25],[61,11,61,12],[60,23,60,25],[61,23,61,25],[51,23,51,25],[64,1,64,8],[64,17,64,18],[54,17,54,18],[54,1,54,8],[62,3,62,6],[62,11,62,12],[62,13,62,14],[62,15,62,16],[62,17,62,19],[56,1,57,1],[56,2,56,6],[57,3,57,6],[56,11,57,12],[56,13,57,14],[56,15,57,16],[58,11,58,12],[58,13,58,14],[58,15,58,16],[58,17,58,19],[64,9,64,15],[62,23,62,25],[32,6,32,8],[56,7,57,8],[59,11,59,12],[61,13,61,14],[50,15,50,16],[54,20,54,22],[54,24,54,25],[61,3,61,6],[58,3,58,6],[59,3,59,6],[60,3,60,6],[52,23,52,25],[55,7,55,25],[53,3,53,25],[52,3,52,6],[52,11,52,12],[52,13,52,14],[52,15,52,16],[59,23,59,25],[58,23,58,25],[50,11,50,12],[51,13,51,14],[56,23,57,25],[44,20,44,22],[44,24,44,25],[64,20,64,22],[64,24,64,25],[30,20,30,22],[30,24,30,25],[51,17,51,19],[50,23,50,25],[52,17,52,19],[49,23,49,25],[50,17,50,19],[56,20,57,22],[30,17,30,18],[44,17,44,18],[49,17,49,19],[46,17,47,19],[46,20,47,22],[46,23,47,25],[24,7,24,25],[8,11,8,15],[9,1,9,25],[6,11,6,12],[20,3,20,25],[8,17,8,20],[8,22,8,25],[8,1,8,9],[51,3,51,6],[51,15,51,16],[51,11,51,12],[50,13,50,14],[50,3,50,6],[27,17,27,18],[6,6,6,7],[49,3,49,6],[28,21,28,22],[28,24,28,25],[33,1,33,7],[27,2,27,15],[46,2,46,6],[46,7,47,8],[47,3,47,6],[29,9,29,25],[0,22,0,25],[6,17,6,25],[10,21,10,25],[3,4,3,13],[5,14,5,16],[5,17,5,25],[3,17,4,25],[10,1,10,14],[31,1,31,3],[31,6,31,8],[12,3,12,25],[6,14,6,16],[5,12,5,13],[10,16,10,19],[17,3,17,25],[16,3,16,25],[15,3,15,25],[14,3,14,25],[13,3,13,25],[26,1,26,7],[26,8,26,25],[2,1,2,25],[5,4,5,10],[24,1,24,6]]}
[null,"特殊健康診断受診対象者調査（学生用）",null,null,null,null,null,null,null,null,null,null,null,null,null,null,null,null,null,null,null,null,"裏面あり",null,null,null,null,null,null,null,null,null,null,null,null,null,null,null,"A"]
[null,null,null,null,null,null,null,null,null,null,null,null,null,null,null,null,null,null,null,"年",null,null,"月",null,null,"日",null,null,null,null,null,null,null,null,null,null,null,null,"B"]
[null,"◇対象者：週１回以上の頻度で3ヶ月以上の期間継続して従事する(予定)者(電離以外)。",null,null,null,null,null,null,null,null,null,null,null,null,null,null,null,null,null,null,null,null,null,null,null,null,null,null,null,null,null,null,null,null,null,null,null,null,"C"]
[null,"学籍番号",null,null,null,null,null,null,null,null,null,null,null,null,"学部・研究科",null,null,null,null,null,null,null,null,null,null,null,null,null,null,null,null,null,null,null,null,null,null,null,"D"]
[null,"ふりがな"]
[null,"氏　名",null,null,null,null,null,null,null,null,null,null,"男　　　女",null,"学科・専攻"]
[null,"生年月日",null,null,"S","H",null,null,"年",null,"月",null,null,"日","指導教員"]
[null,"A欄に該当した方は□にレ点してください。該当しない場合でも裏面を確認してください。"]
[null,"A 　特定業務従事者の健康診断",null,null,null,null,null,null,null,null,null,"イ～ワの特定業務に",null,null,null,null,null,"従事している",null,null,null,null,"従事していない"]
[null,"下記の□にレ点を記入してください。特定業務従事者は、学内健診会場にて半年ごとに特殊健診を受けてください。",null,null,null,null,null,null,null,null,null,null,null,null,null,null,null,null,null,null,null,null,null,null,null,null,null,"別表",null,null,"学内で使用されている頻度が高い物質","歯科対象物質"]
[null,"４月実施の学生定期健康診断受診の有無",null,null,null,null,null,null,null,null,null,null,null,null,null,null,"　　　受診",null,null,null,null,"　　　未受診",null,null,null,null,null,"#","区分","番号","官報告示名","別名","製剤の除外規定","特別\n管理物質","特別\n有機溶剤","毒劇物","特記事項"]
[null,"従事している業務にレ点してください（複数回答可）。",null,null,null,null,null,null,null,null,null,null,null,null,null,null,null,null,null,null,null,null,null,null,null,null,null,1,"製造禁止物質","[禁]1","黄りんマッチ"]
[null,null,"イ","多量の高熱物体を取り扱う業務又は著しく暑熱な場所における業務",null,null,null,null,null,null,null,null,null,null,null,null,null,null,null,null,null,null,null,null,null,null,null,2,"製造禁止物質","[禁]2","ベンジジン及びその塩"]
[null,null,"ロ","多量の低温物体を取り扱う業務又は著しく寒冷な場所における業務",null,null,null,null,null,null,null,null,null,null,null,null,null,null,null,null,null,null,null,null,null,null,null,3,"製造禁止物質","[禁]3","4-アミノジフェニル及びその塩"]
[null,null,"ハ","ラジウム放射線、エックス線その他の有害放射線にさらされる業務（ガラスバッジを所有している者）",null,null,null,null,null,null,null,null,null,null,null,null,null,null,null,null,null,null,null,null,null,null,null,4,"製造禁止物質","[禁]4","石綿"]
[null,null,"ニ","土石、獣毛等のじんあい又は粉末を著しく飛散する場所における業務",null,null,null,null,null,null,null,null,null,null,null,null,null,null,null,null,null,null,null,null,null,null,null,5,"製造禁止物質","[禁]5","4-ニトロジフェニル及びその塩"]
[null,null,"ホ","異常気圧下における業務",null,null,null,null,null,null,null,null,null,null,null,null,null,null,null,null,null,null,null,null,null,null,null,6,"製造禁止物質","[禁]6","ビス（クロロメチル）エーテル"]
[null,null,"ヘ","削岩機、びょう打機等の使用によって、身体に著しい振動を与える業務",null,null,null,null,null,null,null,null,null,null,null,null,null,null,null,null,null,null,null,null,null,null,null,7,"製造禁止物質","[禁]7","β-ナフチルアミン及びその塩"]
[null,null,"ト","重量物の取扱い等重激な業務",null,null,null,null,null,null,null,null,null,null,null,null,null,null,null,null,null,null,null,null,null,null,null,8,"製造禁止物質","[禁]8","ベンゼンを含有するゴムのりで、その含有するベンゼンの容量が当該ゴムのりの溶剤（希釈剤を含む。）の5%を超えるもの"]
[null,null,"チ","ボイラー製造等強烈な騒音を発する場所における業務",null,null,null,null,null,null,null,null,null,null,null,null,null,null,null,null,null,null,null,null,null,null,null,9,"特定化学物質（第1類）","[特1]1","ジクロロベンジジン及びその塩",null,"1重量%以下","○"]
[null,null,"ヌ","深夜業を含む業務（22時～5時の時間帯に及ぶ業務に週１回以上又は月平均４回以上の頻度で継続的に従事する者）",null,null,null,null,null,null,null,null,null,null,null,null,null,null,null,null,null,null,null,null,null,null,null,10,"特定化学物質（第1類）","[特1]2","α-ナフチルアミン及びその塩",null,"1重量%以下","○"]
[null,null,"ル","水銀、砒素、黄リン、弗化水素酸、塩酸、硝酸、硫酸、青酸、か性アルカリ、石炭酸その他これらに準ずる有害物を\n常時繰り返し取り扱う業務（酸健診　裏面G）",null,null,null,null,null,null,null,null,null,null,null,null,null,null,null,null,null,null,null,null,null,null,null,11,"特定化学物質（第1類）","[特1]3","塩素化ビフェニル","PCB","1重量%以下"]
[null,null,"ヲ","鉛、水銀、クロム、砒素、黄リン、弗化水素酸、塩素、塩酸、硝酸、亜硫酸、硫酸、一酸化炭素、二酸化炭素、青酸、ベンゼン、\nアニリン、ホルムアルデヒドその他これらに準ずる有害物のガス、蒸気又は、粉じんが常時発散する場所における業務",null,null,null,null,null,null,null,null,null,null,null,null,null,null,null,null,null,null,null,null,null,null,null,12,"特定化学物質（第1類）","[特1]4","o-トリジン及びその塩",null,"1重量%以下","○"]
[null,null,"ワ","病原体によって汚染のおそれが著しい業務（特定病原体及びレベル３～４の病原体を扱う職員）",null,null,null,null,null,null,null,null,null,null,null,null,null,null,null,null,null,null,null,null,null,null,null,13,"特定化学物質（第1類）","[特1]5","ジアニシジン及びその塩",null,"1重量%以下","○"]
[null,"例：細菌実験等\n業務内容（具体的に）",null,null,null,null,null,null,null,null,null,null,null,null,null,null,null,null,null,null,null,null,null,null,null,null,null,14,"特定化学物質（第1類）","[特1]6","ベリリウム及びその化合物",null,"1重量%以下\n合金にあっては、3重量%以下","○"]
[null,null,null,null,null,null,null,null,null,null,null,null,null,null,null,null,null,null,null,null,null,null,null,null,null,null,null,15,"特定化学物質（第1類）","[特1]7","ベンゾトリクロリド",null,"0.5重量%以下","○"]
[null,"B　電離放射線健康診断",null,null,null,null,null,null,"業務従事（予定）者は電離放射線業務従事者問診票（別紙６）を必ず提出してください。",null,null,null,null,null,null,null,null,null,null,null,null,null,null,null,null,null,null,16,"特定化学物質（第2類）","[特2]1","アクリルアミド",null,"1重量%以下",null,null,"劇物"]
[null,null,"◆過去６月以内でラジウム放射線，エックス線その他の　　\n有害放射線にさらされる業務の実績が",null,null,null,null,null,null,null,null,null,null,null,null,null,null,"ある",null,null,"従事予定あり",null,null,null,"ない",null,null,17,"特定化学物質（第2類）","[特2]2","アクリロニトリル",null,"1重量%以下",null,null,"劇物"]
[null,null,null,null,null,null,null,null,null,null,null,null,null,null,null,null,null,null,null,"◆ガラスバッジの有無",null,"ある",null,null,"ない",null,null,18,"特定化学物質（第2類）","[特2]3","アルキル水銀化合物（アルキル基がメチル基又はエチル基である物に限る。）",null,"1重量%以下",null,null,"毒物"]
[null,"C 　高気圧業務健康診断",null,null,null,null,null,null,null,"　　高気圧業務健康診断を希望します（c・d・eは希望者）業務状況a・bは必須\t",null,null,null,null,null,null,null,null,null,null,null,null,null,null,null,null,null,19,"特定化学物質（第2類）","[特2]3の2","インジウム化合物",null,"1重量%以下","○"]
[null,null,null,null,null,null,null,null,null,null,null,null,null,null,null,"◆過去６月以内で高圧室内又は潜水作業を伴う業務の実績が",null,"ある",null,null,"従事予定あり",null,null,null,"ない",null,null,20,"特定化学物質（第2類）","[特2]3の3","エチルベンゼン",null,"1重量%以下","○","○",null,"1重量%を超える製剤は特別有機溶剤等"]
[null,"業務年数",null,null,"過去半年の\n業務状況",null,"a\n週５日以上",null,null,"b\n週１～４日",null,"c\n週１回未満",null,"d\n通年で連続的\n(月1回以上)",null,null,"e\n断続的不定期\n(年数回)直近月",null,null,null,"主な業務場所",null,null,null,null,null,null,21,"特定化学物質（第2類）","[特2]4","エチレンイミン",null,"1重量%以下","○"]
[null,null,null,"年",null,null,null,null,null,null,null,null,null,null,null,null,null,null,null,"月",null,null,null,null,null,null,null,22,"特定化学物質（第2類）","[特2]5","エチレンオキシド",null,"1重量%以下","○",null,"劇物"]
[null,"D 　騒音作業健康診断",null,null,null,null,null,null,null,"　　騒音作業健康診断を希望します（c・d・eは希望者）業務状況a・bは必須\t",null,null,null,null,null,null,null,null,null,null,null,null,null,null,null,null,null,23,"特定化学物質（第2類）","[特2]6","塩化ビニル",null,"1重量%以下","○"]
[null,null,null,null,null,null,null,null,null,null,null,null,null,null,null,"◆過去６月以内で騒音を伴う業務の実績が　　　　　　　　",null,"ある",null,null,"従事予定あり",null,null,null,"ない",null,null,24,"特定化学物質（第2類）","[特2]7","塩素",null,"1重量%以下",null,null,"劇物"]
[null,null,null,null,null,null,null,null,null,null,null,null,null,null,null,null,null,null,null,null,null,null,null,null,null,null,null,25,"特定化学物質（第2類）","[特2]8","オーラミン",null,"1重量%以下","○"]
[null,null,"化学物質取扱状況調査　（特定化学物質,有機溶剤,歯科健診）",null,null,null,null,null,null,null,null,null,null,null,null,null,null,null,null,null,null,null,null,null,null,null,null,26,"特定化学物質（第2類）","[特2]9","o-フタロジニトリル",null,"1重量%以下"]
[null,null,null,null,null,null,null,null,null,null,null,null,null,null,null,null,null,null,null,null,null,null,null,null,null,null,null,27,"特定化学物質（第2類）","[特2]\n10","カドミウム及びその化合物",null,"1重量%以下",null,null,"劇物"]
[null,1,"　　　過去６月以内において別表化学物質の使用実績がある。",null,null,null,null,null,null,null,null,null,null,null,null,null,null,"化学物質の使用実績",null,null,null,null,null,null,"年",null,null,28,"特定化学物質（第2類）","[特2]\n11","クロム酸及びその塩",null,"1重量%以下","○",null,"劇物"]
[null,2,"　　　A欄イ～ワの業務に常時従事する。\n",null,null,null,null,null,null,null,null,null,null,null,null,null,null,null,null,null,null,null,null,null,null,null,null,29,"特定化学物質（第2類）","[特2]11の2","クロロホルム",null,"1重量%以下","○","○","劇物","1重量%を超える製剤は特別有機溶剤等"]
[null,3,"　　　特定化学物質・有機溶剤による健康不調がある。",null,null,null,null,null,null,null,null,null,null,null,"ある場合はレ点し、その他は記入してください。",null,null,null,null,null,null,null,null,null,null,null,null,30,"特定化学物質（第2類）","[特2]12","クロロメチルメチルエーテル",null,"1重量%以下","○"]
[null,null,null,null,null,null,null,null,null,null,null,null,null,null,null,null,null,null,null,null,null,null,null,null,null,null,null,31,"特定化学物質（第2類）","[特2]13","五酸化バナジウム",null,"1重量%以下",null,null,"劇物"]
[null,null,"１．２．３のいずれかに該当する方は下記D～Fを記入してください。",null,null,null,null,null,null,null,null,null,null,null,null,null,null,null,null,null,null,null,null,null,null,null,null,32,"特定化学物質（第2類）","[特2]13の2","コバルト及びその無機化合物",null,"1重量%以下","○"]
[null,null,null,null,null,null,null,null,null,null,null,null,null,null,null,null,null,null,null,null,null,null,null,null,null,null,null,33,"特定化学物質（第2類）","[特2]14","コールタール",null,"5重量%以下","○"]
[null,"E　特定化学物質等健康診断",null,null,null,null,null,null,null,null,null,null,null,null,null,"特定化学物質の使用実績が",null,"ある＊",null,null,"従事予定あり",null,null,null,"ない",null,null,34,"特定化学物質（第2類）","[特2]15","酸化プロピレン",null,"1重量%以下","○"]
[null,"別表No1～No8１",null,null,null,null,null,"　　　　特定化学物質等健康診断を希望します（c・d・eは希望者）業務状況a・bは必須",null,null,null,null,null,null,null,null,null,null,null,null,null,null,null,null,null,null,null,35,"特定化学物質（第2類）","[特2]16","シアン化カリウム",null,"5重量%以下",null,null,"毒物"]
[null,null,"使用物質",null,null,null,null,"業務\n年数",null,"使用量/日",null,"a\n週５日以上",null,"b\n週１～４日",null,"c\n週１回未満",null,"d\n通年で連続的\n(月1回以上)",null,null,"e\n断続的不定期\n(年数回)直近月",null,null,"使用場所\n(実験室等)",null,null,null,36,"特定化学物質（第2類）","[特2]17","シアン化水素",null,"1重量%以下",null,null,"毒物"]
[null,null,"番号","物質名",null,null,null,null,null,null,null,null,null,null,null,null,null,null,null,null,null,null,null,null,null,null,null,37,"特定化学物質（第2類）","[特2]18","シアン化ナトリウム",null,"5重量%以下",null,null,"毒物"]
[null,1,null,{"$f":"IFERROR(VLOOKUP(C49,$AB$12:$AE$156,4,FALSE),\"\")","v":""},null,null,null,null,"年",null,"ｍｌ",null,null,null,null,null,null,null,null,null,null,null,"月",null,null,null,null,38,"特定化学物質（第2類）","[特2]18の2","四塩化炭素",null,"1重量%以下","○","○","劇物","1重量%を超える製剤は特別有機溶剤等"]
[null,2,null,{"$f":"IFERROR(VLOOKUP(C50,$AB$12:$AE$156,4,FALSE),\"\")","v":""},null,null,null,null,"年",null,"ｍｌ",null,null,null,null,null,null,null,null,null,null,null,"月",null,null,null,null,39,"特定化学物質（第2類）","[特2]18の3","1,4-ジオキサン",null,"1重量%以下","○","○",null,"1重量%を超える製剤は特別有機溶剤等"]
[null,3,null,"",null,null,null,null,"年",null,"ｍｌ",null,null,null,null,null,null,null,null,null,null,null,"月",null,null,null,null,40,"特定化学物質（第2類）","[特2]18の4","1,2-ジクロロエタン","二塩化エチレン","1重量%以下","○","○",null,"1重量%を超える製剤は特別有機溶剤等"]
[null,4,null,"",null,null,null,null,"年",null,"ｍｌ",null,null,null,null,null,null,null,null,null,null,null,"月",null,null,null,null,41,"特定化学物質（第2類）","[特2]19","3,3'-ジクロロ-4,4'-ジアミノジフェニルメタン",null,"1重量%以下","○"]
[null,5,null,{"$f":"IFERROR(VLOOKUP(C53,$AB$12:$AE$156,4,FALSE),\"\")","v":""},null,null,null,null,"年",null,"ｍｌ",null,null,null,null,null,null,null,null,null,null,null,"月",null,null,null,null,42,"特定化学物質（第2類）","[特2]19の2","1,2-ジクロロプロパン",null,"1重量%以下","○","○",null,"1重量%を超える製剤は特別有機溶剤等"]
[null,null,null,"↑ホルムアルデヒド,エチレンオキシドガスに係る業務は特化物健診対象外ですが特定業務従事者健診の対象者です",null,null,null,null,null,null,null,null,null,null,null,null,null,null,null,null,null,null,null,null,null,null,null,43,"特定化学物質（第2類）","[特2]19の3","ジクロロメタン","二塩化メチレン","1重量%以下","○","○",null,"1重量%を超える製剤は特別有機溶剤等"]
[null,"F　有機溶剤等健康診断",null,null,null,null,null,null,null,null,null,null,null,null,null,"有機溶剤の使用実績が",null,"ある＊",null,null,"従事予定あり",null,null,null,"ない",null,null,44,"特定化学物質（第2類）","[特2]19の4","ジメチル-2,2-ジクロロビニルホスフェイト","DDVP","1重量%以下","○",null,"劇物"]
[null,"別表No82～No135",null,null,null,null,null,"　　　　有機溶剤等健康診断を希望します（c・d・eは希望者）業務状況a・bは必須",null,null,null,null,null,null,null,null,null,null,null,null,null,null,null,null,null,null,null,45,"特定化学物質（第2類）","[特2]19の5","1,1-ジメチルヒドラジン",null,"1重量%以下","○",null,"毒物"]
[null,null,"使用物質",null,null,null,null,"業務\n年数",null,"使用量/日",null,"a\n週５日以上",null,"b\n週１～４日",null,"c\n週１回未満",null,"d\n通年で連続的\n(月1回以上)",null,null,"e\n断続的不定期\n(年数回)直近月",null,null,"使用場所\n(実験室等)",null,null,null,46,"特定化学物質（第2類）","[特2]20","臭化メチル",null,"1重量%以下",null,null,"劇物"]
[null,null,"番号","物質名",null,null,null,null,null,null,null,null,null,null,null,null,null,null,null,null,null,null,null,null,null,null,null,47,"特定化学物質（第2類）","[特2]21","重クロム酸及びその塩",null,"1重量%以下","○",null,"劇物"]
[null,1,null,{"$f":"IFERROR(VLOOKUP(C59,$AB$12:$AE$156,4,FALSE),\"\")","v":""},null,null,null,null,"年",null,"ｍｌ",null,null,null,null,null,null,null,null,null,null,null,"月",null,null,null,null,48,"特定化学物質（第2類）","[特2]22","水銀及びその無機化合物（硫化水銀を除く。）",null,"1重量%以下",null,null,"毒物"]
[null,2,null,{"$f":"IFERROR(VLOOKUP(C60,$AB$12:$AE$156,4,FALSE),\"\")","v":""},null,null,null,null,"年",null,"ｍｌ",null,null,null,null,null,null,null,null,null,null,null,"月",null,null,null,null,49,"特定化学物質（第2類）","[特2]22の2","スチレン",null,"1重量%以下","○","○",null,"1重量%を超える製剤は特別有機溶剤等"]
[null,3,null,"",null,null,null,null,"年",null,"ｍｌ",null,null,null,null,null,null,null,null,null,null,null,"月",null,null,null,null,50,"特定化学物質（第2類）","[特2]\n22の3","1,1,2,2-テトラクロロエタン","四塩化アセチレン","1重量%以下","○","○",null,"1重量%を超える製剤は特別有機溶剤等"]
[null,4,null,"",null,null,null,null,"年",null,"ｍｌ",null,null,null,null,null,null,null,null,null,null,null,"月",null,null,null,null,51,"特定化学物質（第2類）","[特2]22の4","テトラクロロエチレン","パークロロエチレン","1重量%以下","○","○",null,"1重量%を超える製剤は特別有機溶剤等"]
[null,5,null,"",null,null,null,null,"年",null,"ｍｌ",null,null,null,null,null,null,null,null,null,null,null,"月",null,null,null,null,52,"特定化学物質（第2類）","[特2]22の5","トリクロロエチレン",null,"1重量%以下","○","○",null,"1重量%を超える製剤は特別有機溶剤等"]
[null,null,null,null,null,null,null,null,null,null,null,null,null,null,null,null,null,null,null,null,null,null,null,null,null,null,null,53,"特定化学物質（第2類）","[特2]23","トリレンジイソシアネート",null,"1重量%以下"]
[null,"G 　歯科医師による健康診断",null,null,null,null,null,null,null,null,null,null,null,null,null,null,null,"ある＊",null,null,"従事予定あり",null,null,null,"ない",null,null,54,"特定化学物質（第2類）","[特2]23の2","ナフタレン",null,"1重量%以下","○",null,null,"平成27年法改正により追加"]
[null,"別表No200～No206",null,null,null,null,null,"　　　　歯科医師による健康診断を希望します（c・d・eは希望者）業務状況a・bは必須",null,null,null,null,null,null,null,null,null,null,null,null,null,null,null,null,null,null,null,55,"特定化学物質（第2類）","[特2]23の3","ニッケル化合物（24に掲げる物を除き、粉状の物に限る。）",null,"1重量%以下","○"]
[null,null,"使用物質",null,null,null,null,"業務\n年数",null,"使用量/日",null,"a\n週５日以上",null,"b\n週１～４日",null,"c\n週１回未満",null,"d\n通年で連続的\n(月1回以上)",null,null,"e\n断続的不定期\n(年数回)直近月",null,null,"使用場所\n(実験室等)",null,null,null,56,"特定化学物質（第2類）","[特2]24","ニッケルカルボニル",null,"1重量%以下","○",null,"劇物"]
[null,null,"番号","物質名",null,null,null,null,null,null,null,null,null,null,null,null,null,null,null,null,null,null,null,null,null,null,null,57,"特定化学物質（第2類）","[特2]25","ニトログリコール",null,"1重量%以下"]
[null,1,null,{"$f":"IFERROR(VLOOKUP(C69,$AB$12:$AE$156,4,FALSE),\"\")","v":""},null,null,null,null,"年",null,"ｍｌ",null,null,null,null,null,null,null,null,null,null,null,"月",null,null,null,null,58,"特定化学物質（第2類）","[特2]26","p-ジメチルアミノアゾベンゼン",null,"1重量%以下","○"]
[null,2,null,"",null,null,null,null,"年",null,"ｍｌ",null,null,null,null,null,null,null,null,null,null,null,"月",null,null,null,null,59,"特定化学物質（第2類）","[特2]27","p-ニトロクロロベンゼン",null,"5重量%以下"]
[null,3,null,null,null,null,null,null,"年",null,"ｍｌ",null,null,null,null,null,null,null,null,null,null,null,"月",null,null,null,null,60,"特定化学物質（第2類）","[特2]27の2","砒素及びその化合物（アルシン及び砒化ガリウムを除く。）",null,"1重量%以下","○",null,"毒物","ヒ素"]
[null,4,null,"",null,null,null,null,"年",null,"ｍｌ",null,null,null,null,null,null,null,null,null,null,null,"月",null,null,null,null,61,"特定化学物質（第2類）","[特2]28","弗化水素",null,"5重量%以下",null,null,"毒物","フッ化水素"]
[null,5,null,{"$f":"IFERROR(VLOOKUP(C73,$AB$12:$AE$156,4,FALSE),\"\")","v":""},null,null,null,null,"年",null,"ｍｌ",null,null,null,null,null,null,null,null,null,null,null,"月",null,null,null,null,62,"特定化学物質（第2類）","[特2]29","β-プロピオラクトン",null,"1重量%以下","○"]
[null,null,null,null,null,null,null,null,null,null,null,null,null,null,null,null,null,null,null,null,null,null,null,null,null,null,null,63,"特定化学物質（第2類）","[特2]30","ベンゼン",null,"1重量%以下","○"]
[null,null,null,null,null,null,null,null,null,null,null,null,null,null,null,null,null,null,null,null,null,null,null,null,null,null,null,64,"特定化学物質（第2類）","[特2]31","ペンタクロロフェノール及びそのナトリウム塩","PCP","1重量%以下","○",null,"劇物"]
[null,null,null,null,null,null,null,null,null,null,null,null,null,null,null,null,null,null,null,null,null,null,null,null,null,null,null,65,"特定化学物質（第2類）","[特2]31の2","ホルムアルデヒド",null,"1重量%以下","○",null,"劇物"]
[null,null,null,null,null,null,null,null,null,null,null,null,null,null,null,null,null,null,null,null,null,null,null,null,null,null,null,66,"特定化学物質（第2類）","[特2]32","マゼンタ",null,"1重量%以下","○"]
[null,null,null,null,null,null,null,null,null,null,null,null,null,null,null,null,null,null,null,null,null,null,null,null,null,null,null,67,"特定化学物質（第2類）","[特2]33","マンガン及びその化合物（塩基性酸化マンガンを除く。）",null,"1重量%以下"]
[null,null,null,null,null,null,null,null,null,null,null,null,null,null,null,null,null,null,null,null,null,null,null,null,null,null,null,68,"特定化学物質（第2類）","[特2]33の2","メチルイソブチルケトン",null,"1重量%以下","○","○",null,"1重量%を超える製剤は特別有機溶剤等"]
[null,null,null,null,null,null,null,null,null,null,null,null,null,null,null,null,null,null,null,null,null,null,null,null,null,null,null,69,"特定化学物質（第2類）","[特2]34","沃化メチル",null,"1重量%以下",null,null,"劇物","ヨウ化メチル"]
[null,null,null,null,null,null,null,null,null,null,null,null,null,null,null,null,null,null,null,null,null,null,null,null,null,null,null,70,"特定化学物質（第2類）","[特2]34の2","リフラクトリーセラミックファイバー","RCF","1重量%以下",null,null,null,"平成27年法改正により追加"]
[null,null,null,null,null,null,null,null,null,null,null,null,null,null,null,null,null,null,null,null,null,null,null,null,null,null,null,71,"特定化学物質（第2類）","[特2]35","硫化水素",null,"1重量%以下",null,null,"劇物"]
[null,null,null,null,null,null,null,null,null,null,null,null,null,null,null,null,null,null,null,null,null,null,null,null,null,null,null,72,"特定化学物質（第2類）","[特2]36","硫酸ジメチル",null,"1重量%以下",null,null,"劇物"]
[null,null,null,null,null,null,null,null,null,null,null,null,null,null,null,null,null,null,null,null,null,null,null,null,null,null,null,73,"特定化学物質（第2類）","[特2]37","エチルベンゼン、クロロホルム、四塩化炭素、1,4-ジオキサン、1,2-ジクロロエタン、1.2-ジクロロプロパン、ジクロロメタン、スチレン、1,1,2,2-テトラクロロエタン、テトラクロロエチレン、トリクロロエチレン、メチルイソブチルケトン又は有機溶剤を含有する製剤その他の物。ただし、次（右）に掲げるものを除く。　（略）\n　　　　　　　　　　　　　　",null,"イ　（特別有機溶剤等）\nロ　特別有機溶剤等の合計含有量が5重量%以下の製剤\nハ　有機則第1条第1項第2号に規定する有機溶剤含有物（イに掲げるものを除く。）"]
[null,null,null,null,null,null,null,null,null,null,null,null,null,null,null,null,null,null,null,null,null,null,null,null,null,null,null,74,"特定化学物質（第3類）","[特3]1","アンモニア",null,"1重量%以下",null,null,"劇物"]
[null,null,null,null,null,null,null,null,null,null,null,null,null,null,null,null,null,null,null,null,null,null,null,null,null,null,null,75,"特定化学物質（第3類）","[特3]2","一酸化炭素",null,"1重量%以下"]
[null,null,null,null,null,null,null,null,null,null,null,null,null,null,null,null,null,null,null,null,null,null,null,null,null,null,null,76,"特定化学物質（第3類）","[特3]3","塩化水素",null,"1重量%以下",null,null,"劇物"]
[null,null,null,null,null,null,null,null,null,null,null,null,null,null,null,null,null,null,null,null,null,null,null,null,null,null,null,77,"特定化学物質（第3類）","[特3]4","硝酸",null,"1重量%以下",null,null,"劇物"]
[null,null,null,null,null,null,null,null,null,null,null,null,null,null,null,null,null,null,null,null,null,null,null,null,null,null,null,78,"特定化学物質（第3類）","[特3]5","二酸化硫黄",null,"1重量%以下"]
[null,null,null,null,null,null,null,null,null,null,null,null,null,null,null,null,null,null,null,null,null,null,null,null,null,null,null,79,"特定化学物質（第3類）","[特3]6","フェノール",null,"5重量%以下",null,null,"劇物"]
[null,null,null,null,null,null,null,null,null,null,null,null,null,null,null,null,null,null,null,null,null,null,null,null,null,null,null,80,"特定化学物質（第3類）","[特3]7","ホスゲン",null,"1重量%以下",null,null,"劇物"]
[null,null,null,null,null,null,null,null,null,null,null,null,null,null,null,null,null,null,null,null,null,null,null,null,null,null,null,81,"特定化学物質（第3類）","[特3]8","硫酸",null,"1重量%以下",null,null,"劇物"]
[null,null,null,null,null,null,null,null,null,null,null,null,null,null,null,null,null,null,null,null,null,null,null,null,null,null,null,82,"有機溶剤（第2類）","[有]1","アセトン"]
[null,null,null,null,null,null,null,null,null,null,null,null,null,null,null,null,null,null,null,null,null,null,null,null,null,null,null,83,"有機溶剤（第2類）","[有]2","イソブチルアルコール"]
[null,null,null,null,null,null,null,null,null,null,null,null,null,null,null,null,null,null,null,null,null,null,null,null,null,null,null,84,"有機溶剤（第2類）","[有]3","イソプロピルアルコール"]
[null,null,null,null,null,null,null,null,null,null,null,null,null,null,null,null,null,null,null,null,null,null,null,null,null,null,null,85,"有機溶剤（第2類）","[有]4","イソペンチルアルコール","イソアミルアルコール"]
[null,null,null,null,null,null,null,null,null,null,null,null,null,null,null,null,null,null,null,null,null,null,null,null,null,null,null,86,"有機溶剤（第2類）","[有]5","エチルエーテル"]
[null,null,null,null,null,null,null,null,null,null,null,null,null,null,null,null,null,null,null,null,null,null,null,null,null,null,null,87,"有機溶剤（第2類）","[有]6","エチレングリコールモノエチルエーテル","セロソルブ"]
[null,null,null,null,null,null,null,null,null,null,null,null,null,null,null,null,null,null,null,null,null,null,null,null,null,null,null,88,"有機溶剤（第2類）","[有]7","エチレングリコールモノエチルエーテルアセテート","セロソルブアセテート"]
[null,null,null,null,null,null,null,null,null,null,null,null,null,null,null,null,null,null,null,null,null,null,null,null,null,null,null,89,"有機溶剤（第2類）","[有]8","エチレングリコールモノ-n-ブチルエーテル","ブチルセロソルブ"]
[null,null,null,null,null,null,null,null,null,null,null,null,null,null,null,null,null,null,null,null,null,null,null,null,null,null,null,90,"有機溶剤（第2類）","[有]9","エチレングリコールモノメチルエーテル","メチルセロソルブ"]
[null,null,null,null,null,null,null,null,null,null,null,null,null,null,null,null,null,null,null,null,null,null,null,null,null,null,null,91,"有機溶剤（第2類）","[有]10","o-ジクロロベンゼン"]
[null,null,null,null,null,null,null,null,null,null,null,null,null,null,null,null,null,null,null,null,null,null,null,null,null,null,null,92,"有機溶剤（第2類）","[有]11","キシレン",null,null,null,null,"劇物"]
[null,null,null,null,null,null,null,null,null,null,null,null,null,null,null,null,null,null,null,null,null,null,null,null,null,null,null,93,"有機溶剤（第2類）","[有]12","クレゾール",null,null,null,null,"劇物"]
[null,null,null,null,null,null,null,null,null,null,null,null,null,null,null,null,null,null,null,null,null,null,null,null,null,null,null,94,"有機溶剤（第2類）","[有]13","クロロベンゼン"]
[null,null,null,null,null,null,null,null,null,null,null,null,null,null,null,null,null,null,null,null,null,null,null,null,null,null,null,95,"有機溶剤（第1類）","[有]14","削除　特定化学物質（特別有機溶剤）に移行。",null,null,null,null,null,"クロロホルムのこと。"]
[null,null,null,null,null,null,null,null,null,null,null,null,null,null,null,null,null,null,null,null,null,null,null,null,null,null,null,96,"有機溶剤（第2類）","[有]15","酢酸イソブチル"]
[null,null,null,null,null,null,null,null,null,null,null,null,null,null,null,null,null,null,null,null,null,null,null,null,null,null,null,97,"有機溶剤（第2類）","[有]16","酢酸イソプロピル"]
[null,null,null,null,null,null,null,null,null,null,null,null,null,null,null,null,null,null,null,null,null,null,null,null,null,null,null,98,"有機溶剤（第2類）","[有]17","酢酸イソペンチル","酢酸イソアミル"]
[null,null,null,null,null,null,null,null,null,null,null,null,null,null,null,null,null,null,null,null,null,null,null,null,null,null,null,99,"有機溶剤（第2類）","[有]18","酢酸エチル",null,null,null,null,"劇物"]
[null,null,null,null,null,null,null,null,null,null,null,null,null,null,null,null,null,null,null,null,null,null,null,null,null,null,null,100,"有機溶剤（第2類）","[有]19","酢酸n-ブチル"]
[null,null,null,null,null,null,null,null,null,null,null,null,null,null,null,null,null,null,null,null,null,null,null,null,null,null,null,101,"有機溶剤（第2類）","[有]20","酢酸n-プロピル"]
[null,null,null,null,null,null,null,null,null,null,null,null,null,null,null,null,null,null,null,null,null,null,null,null,null,null,null,102,"有機溶剤（第2類）","[有]21","酢酸n-ペンチル","酢酸n-アミル"]
[null,null,null,null,null,null,null,null,null,null,null,null,null,null,null,null,null,null,null,null,null,null,null,null,null,null,null,103,"有機溶剤（第2類）","[有]22","酢酸メチル"]
[null,null,null,null,null,null,null,null,null,null,null,null,null,null,null,null,null,null,null,null,null,null,null,null,null,null,null,104,"有機溶剤（第1類）","[有]23","削除　特定化学物質（特別有機溶剤）に移行。",null,null,null,null,null,"四塩化炭素のこと。"]
[null,null,null,null,null,null,null,null,null,null,null,null,null,null,null,null,null,null,null,null,null,null,null,null,null,null,null,105,"有機溶剤（第2類）","[有]24","シクロヘキサノール"]
[null,null,null,null,null,null,null,null,null,null,null,null,null,null,null,null,null,null,null,null,null,null,null,null,null,null,null,106,"有機溶剤（第2類）","[有]25","シクロヘキサノン"]
[null,null,null,null,null,null,null,null,null,null,null,null,null,null,null,null,null,null,null,null,null,null,null,null,null,null,null,107,"有機溶剤（第2類）","[有]26","削除　特定化学物質（特別有機溶剤）に移行。",null,null,null,null,null,"1,4-ジオキサンのこと。"]
[null,null,null,null,null,null,null,null,null,null,null,null,null,null,null,null,null,null,null,null,null,null,null,null,null,null,null,108,"有機溶剤（第2類）","[有]27","削除　特定化学物質（特別有機溶剤）に移行。",null,null,null,null,null,"1,2-ジクロロエタンのこと。"]
[null,null,null,null,null,null,null,null,null,null,null,null,null,null,null,null,null,null,null,null,null,null,null,null,null,null,null,109,"有機溶剤（第1類）","[有]28","1,2-ジクロロエチレン","二塩化アセチレン"]
[null,null,null,null,null,null,null,null,null,null,null,null,null,null,null,null,null,null,null,null,null,null,null,null,null,null,null,110,"有機溶剤（第2類）","[有]29","削除　特定化学物質（特別有機溶剤）に移行。",null,null,null,null,null,"ジクロロメタンのこと。"]
[null,null,null,null,null,null,null,null,null,null,null,null,null,null,null,null,null,null,null,null,null,null,null,null,null,null,null,111,"有機溶剤（第2類）","[有]30","N,N-ジメチルホルムアミド"]
[null,null,null,null,null,null,null,null,null,null,null,null,null,null,null,null,null,null,null,null,null,null,null,null,null,null,null,112,"有機溶剤（第2類）","[有]31","削除　特定化学物質（特別有機溶剤）に移行。",null,null,null,null,null,"スチレンのこと。"]
[null,null,null,null,null,null,null,null,null,null,null,null,null,null,null,null,null,null,null,null,null,null,null,null,null,null,null,113,"有機溶剤（第1類）","[有]32","削除　特定化学物質（特別有機溶剤）に移行。",null,null,null,null,null,"1,1,2,2-テトラクロロエタンのこと。"]
[null,null,null,null,null,null,null,null,null,null,null,null,null,null,null,null,null,null,null,null,null,null,null,null,null,null,null,114,"有機溶剤（第2類）","[有]33","削除　特定化学物質（特別有機溶剤）に移行。",null,null,null,null,null,"テトラクロロエチレンのこと。"]
[null,null,null,null,null,null,null,null,null,null,null,null,null,null,null,null,null,null,null,null,null,null,null,null,null,null,null,115,"有機溶剤（第2類）","[有]34","テトラヒドロフラン"]
[null,null,null,null,null,null,null,null,null,null,null,null,null,null,null,null,null,null,null,null,null,null,null,null,null,null,null,116,"有機溶剤（第2類）","[有]35","1,1,1-トリクロロエタン"]
[null,null,null,null,null,null,null,null,null,null,null,null,null,null,null,null,null,null,null,null,null,null,null,null,null,null,null,117,"有機溶剤（第1類）","[有]36","削除　特定化学物質（特別有機溶剤）に移行。",null,null,null,null,null,"トリクロロエチレンのこと。"]
[null,null,null,null,null,null,null,null,null,null,null,null,null,null,null,null,null,null,null,null,null,null,null,null,null,null,null,118,"有機溶剤（第2類）","[有]37","トルエン",null,null,null,null,"劇物"]
[null,null,null,null,null,null,null,null,null,null,null,null,null,null,null,null,null,null,null,null,null,null,null,null,null,null,null,119,"有機溶剤（第1類）","[有]38","二硫化炭素",null,null,null,null,"劇物"]
[null,null,null,null,null,null,null,null,null,null,null,null,null,null,null,null,null,null,null,null,null,null,null,null,null,null,null,120,"有機溶剤（第2類）","[有]39","ノルマルヘキサン"]
[null,null,null,null,null,null,null,null,null,null,null,null,null,null,null,null,null,null,null,null,null,null,null,null,null,null,null,121,"有機溶剤（第2類）","[有]40","1-ブタノール"]
[null,null,null,null,null,null,null,null,null,null,null,null,null,null,null,null,null,null,null,null,null,null,null,null,null,null,null,122,"有機溶剤（第2類）","[有]41","2-ブタノール"]
[null,null,null,null,null,null,null,null,null,null,null,null,null,null,null,null,null,null,null,null,null,null,null,null,null,null,null,123,"有機溶剤（第2類）","[有]42","メタノール",null,null,null,null,"劇物"]
[null,null,null,null,null,null,null,null,null,null,null,null,null,null,null,null,null,null,null,null,null,null,null,null,null,null,null,124,"有機溶剤（第2類）","[有]43","削除　特定化学物質（特別有機溶剤）に移行。",null,null,null,null,null,"メチルイソブチルケトンのこと。"]
[null,null,null,null,null,null,null,null,null,null,null,null,null,null,null,null,null,null,null,null,null,null,null,null,null,null,null,125,"有機溶剤（第2類）","[有]44","メチルエチルケトン",null,null,null,null,"劇物"]
[null,null,null,null,null,null,null,null,null,null,null,null,null,null,null,null,null,null,null,null,null,null,null,null,null,null,null,126,"有機溶剤（第2類）","[有]45","メチルシクロヘキサノール"]
[null,null,null,null,null,null,null,null,null,null,null,null,null,null,null,null,null,null,null,null,null,null,null,null,null,null,null,127,"有機溶剤（第2類）","[有]46","メチルシクロヘキサノン"]
[null,null,null,null,null,null,null,null,null,null,null,null,null,null,null,null,null,null,null,null,null,null,null,null,null,null,null,128,"有機溶剤（第2類）","[有]47","メチル-n-ブチルケトン"]
[null,null,null,null,null,null,null,null,null,null,null,null,null,null,null,null,null,null,null,null,null,null,null,null,null,null,null,129,"有機溶剤（第3類）","[有]48","ガソリン"]
[null,null,null,null,null,null,null,null,null,null,null,null,null,null,null,null,null,null,null,null,null,null,null,null,null,null,null,130,"有機溶剤（第3類）","[有]49","コールタールナフサ（ソルベントナフサを含む。）"]
[null,null,null,null,null,null,null,null,null,null,null,null,null,null,null,null,null,null,null,null,null,null,null,null,null,null,null,131,"有機溶剤（第3類）","[有]50","石油エーテル"]
[null,null,null,null,null,null,null,null,null,null,null,null,null,null,null,null,null,null,null,null,null,null,null,null,null,null,null,132,"有機溶剤（第3類）","[有]51","石油ナフサ"]
[null,null,null,null,null,null,null,null,null,null,null,null,null,null,null,null,null,null,null,null,null,null,null,null,null,null,null,133,"有機溶剤（第3類）","[有]52","石油ベンジン"]
[null,null,null,null,null,null,null,null,null,null,null,null,null,null,null,null,null,null,null,null,null,null,null,null,null,null,null,134,"有機溶剤（第3類）","[有]53","テレビン油"]
[null,null,null,null,null,null,null,null,null,null,null,null,null,null,null,null,null,null,null,null,null,null,null,null,null,null,null,135,"有機溶剤（第3類）","[有]54","ミネラルスピリツト（ミネラルシンナー、ペトロリウムスピリツト、ホワイトスピリツト及びミネラルターペンを含む。）"]
[]
[]
[null,null,null,null,null,null,null,null,null,null,null,null,null,null,null,null,null,null,null,null,null,null,null,null,null,null,null,"酸健診（歯科検診対象）"]
[null,null,null,null,null,null,null,null,null,null,null,null,null,null,null,null,null,null,null,null,null,null,null,null,null,null,null,200,null,null,"塩酸"]
[null,null,null,null,null,null,null,null,null,null,null,null,null,null,null,null,null,null,null,null,null,null,null,null,null,null,null,201,"特定化学物質（第3類）","[特3]4","硝酸"]
[null,null,null,null,null,null,null,null,null,null,null,null,null,null,null,null,null,null,null,null,null,null,null,null,null,null,null,202,"特定化学物質（第3類）","[特3]8","硫酸"]
[null,null,null,null,null,null,null,null,null,null,null,null,null,null,null,null,null,null,null,null,null,null,null,null,null,null,null,203,null,null,"亜硫酸"]
[null,null,null,null,null,null,null,null,null,null,null,null,null,null,null,null,null,null,null,null,null,null,null,null,null,null,null,204,"特定化学物質（第2類）","[特2]28","弗化水素"]
[null,null,null,null,null,null,null,null,null,null,null,null,null,null,null,null,null,null,null,null,null,null,null,null,null,null,null,205,"製造禁止物質","[禁]1","黄リン"]
[null,null,null,null,null,null,null,null,null,null,null,null,null,null,null,null,null,null,null,null,null,null,null,null,null,null,null,206,null,null,"その他歯又はその支持組織に有害な物"]

{"sheet":"特殊健診等調査及び申込書 (記入例)","index":1,"n_rows":156,"n_cols":39,"rows_kept":156,"cut":false,"hidden":false,"merged":[[74,23,74,25],[148,27,148,30],[6,6,6,7],[72,3,72,6],[72,11,72,12],[72,13,72,14],[72,15,72,16],[72,17,72,19],[72,23,72,25],[71,3,71,6],[71,11,71,12],[71,13,71,14],[71,15,71,16],[71,17,71,19],[71,23,71,25],[70,3,70,6],[70,11,70,12],[70,13,70,14],[70,15,70,16],[70,17,70,19],[70,23,70,25],[68,23,68,25],[69,3,69,6],[69,11,69,12],[69,13,69,14],[69,15,69,16],[69,17,69,19],[69,23,69,25],[66,15,67,16],[66,17,67,19],[66,20,67,22],[66,23,67,25],[67,3,67,6],[68,3,68,6],[68,11,68,12],[68,13,68,14],[68,15,68,16],[68,17,68,19],[66,1,67,1],[66,2,66,6],[66,7,67,8],[66,9,67,10],[66,11,67,12],[66,13,67,14],[64,1,64,8],[64,9,64,15],[64,17,64,18],[64,20,64,22],[64,24,64,25],[65,7,65,25],[62,3,62,6],[62,11,62,12],[62,13,62,14],[62,15,62,16],[62,17,62,19],[62,23,62,25],[61,3,61,6],[61,11,61,12],[61,13,61,14],[61,15,61,16],[61,17,61,19],[61,23,61,25],[60,3,60,6],[60,11,60,12],[60,13,60,14],[60,15,60,16],[60,17,60,19],[60,23,60,25],[58,23,58,25],[59,3,59,6],[59,11,59,12],[59,13,59,14],[59,15,59,16],[59,17,59,19],[59,23,59,25],[56,15,57,16],[56,17,57,19],[56,20,57,22],[56,23,57,25],[57,3,57,6],[58,3,58,6],[58,11,58,12],[58,13,58,14],[58,15,58,16],[58,17,58,19],[56,1,57,1],[56,2,56,6],[56,7,57,8],[56,9,57,10],[56,11,57,12],[56,13,57,14],[53,3,53,25],[54,1,54,8],[54,17,54,18],[54,20,54,22],[54,24,54,25],[55,7,55,25],[50,23,50,25],[48,23,48,25],[49,3,49,6],[49,11,49,12],[49,13,49,14],[49,15,49,16],[49,17,49,19],[49,23,49,25],[52,3,52,6],[52,11,52,12],[52,13,52,14],[52,15,52,16],[52,17,52,19],[52,23,52,25],[51,3,51,6],[51,11,51,12],[51,13,51,14],[51,15,51,16],[51,17,51,19],[51,23,51,25],[48,3,48,6],[48,11,48,12],[48,13,48,14],[48,15,48,16],[48,17,48,19],[50,3,50,6],[50,11,50,12],[50,13,50,14],[50,15,50,16],[50,17,50,19],[46,1,47,1],[46,2,46,6],[46,7,47,8],[46,9,47,10],[46,11,47,12],[46,13,47,14],[41,14,41,24],[44,1,44,8],[44,17,44,18],[44,20,44,22],[44,24,44,25],[45,7,45,25],[46,15,47,16],[46,17,47,19],[46,20,47,22],[46,23,47,25],[47,3,47,6],[33,1,33,7],[33,9,33,25],[34,17,34,18],[34,20,34,22],[34,24,34,25],[38,22,38,23],[31,16,31,19],[31,20,32,25],[32,1,32,2],[32,6,32,8],[32,9,32,10],[32,11,32,12],[32,13,32,15],[32,17,32,18],[31,1,31,3],[31,4,32,5],[31,6,31,8],[31,9,31,10],[31,11,31,12],[31,13,31,15],[28,21,28,22],[28,24,28,25],[29,1,29,7],[29,9,29,25],[30,17,30,18],[30,20,30,22],[30,24,30,25],[24,1,24,6],[24,7,24,25],[26,1,26,7],[26,8,26,25],[27,2,27,15],[27,17,27,18],[27,20,27,22],[27,24,27,25],[18,3,18,25],[19,3,19,25],[20,3,20,25],[21,3,21,25],[22,3,22,25],[23,3,23,25],[12,3,12,25],[13,3,13,25],[14,3,14,25],[15,3,15,25],[16,3,16,25],[17,3,17,25],[9,1,9,25],[10,16,10,19],[10,21,10,25],[6,1,6,3],[6,11,6,12],[6,14,6,16],[6,17,6,25],[8,1,8,9],[8,11,8,15],[8,17,8,20],[8,22,8,25],[10,1,10,14],[4,1,4,3],[4,4,4,13],[5,1,5,3],[5,4,5,10],[5,12,5,13],[0,1,0,15],[2,1,2,25],[3,1,3,3],[3,14,4,16],[0,19,0,25],[3,4,3,13],[3,17,4,25],[5,14,5,16],[5,17,5,25]]}
[null,"特殊健康診断受診対象者調査（学生用）",null,null,null,null,null,null,null,null,null,null,null,null,null,null,null,null,null,"別紙５－２　",null,null,null,null,null,null,null,null,null,null,null,null,null,null,null,null,null,null,"A"]
[null,null,null,null,null,null,null,null,null,null,null,null,null,null,null,null,null,null,null,"年",null,null,"月",null,null,"日",null,null,null,null,null,null,null,null,null,null,null,null,"B"]
[null,"◇対象者：週１回以上の頻度で3ヶ月以上の期間継続して従事する(予定)者(電離以外)。",null,null,null,null,null,null,null,null,null,null,null,null,null,null,null,null,null,null,null,null,null,null,null,null,null,null,null,null,null,null,null,null,null,null,null,null,"C"]
[null,"学籍番号",null,null,"123456K",null,null,null,null,null,null,null,null,null,"学部・研究科",null,null,"〇〇学部",null,null,null,null,null,null,null,null,null,null,null,null,null,null,null,null,null,null,null,null,"D"]
[null,"ふりがな",null,null,"りゅうだい　たろう"]
[null,"氏　名",null,null,"琉大　太郎",null,null,null,null,null,null,null,"男　　　女",null,"学科・専攻",null,null,"〇〇学科"]
[null,"生年月日",null,null,"S","H",11,null,"年",5,"月",5,null,"日","指導教員",null,null,"〇〇　〇〇"]
[null,"A欄に該当した方は□にレ点してください。該当しない場合でも裏面を確認してください。"]
[null,"A 　特定業務従事者の健康診断",null,null,null,null,null,null,null,null,null,"イ～ワの特定業務に",null,null,null,null,null,"従事している",null,null,null,null,"従事していない"]
[null,"下記の□にレ点を記入してください。特定業務従事者は、学内健診会場にて半年ごとに特殊健診を受けてください。",null,null,null,null,null,null,null,null,null,null,null,null,null,null,null,null,null,null,null,null,null,null,null,null,null,"別表",null,null,"学内で使用されている頻度が高い物質","歯科対象物質"]
[null,"４月実施の学生定期健康診断受診の有無",null,null,null,null,null,null,null,null,null,null,null,null,null,null,"　　　受診",null,null,null,null,"　　　未受診",null,null,null,null,null,"#","区分","番号","官報告示名","別名","製剤の除外規定","特別\n管理物質","特別\n有機溶剤","毒劇物","特記事項"]
[null,"従事している業務にレ点してください（複数回答可）。",null,null,null,null,null,null,null,null,null,null,null,null,null,null,null,null,null,null,null,null,null,null,null,null,null,1,"製造禁止物質","[禁]1","黄りんマッチ"]
[null,null,"イ","多量の高熱物体を取り扱う業務又は著しく暑熱な場所における業務",null,null,null,null,null,null,null,null,null,null,null,null,null,null,null,null,null,null,null,null,null,null,null,2,"製造禁止物質","[禁]2","ベンジジン及びその塩"]
[null,null,"ロ","多量の低温物体を取り扱う業務又は著しく寒冷な場所における業務",null,null,null,null,null,null,null,null,null,null,null,null,null,null,null,null,null,null,null,null,null,null,null,3,"製造禁止物質","[禁]3","4-アミノジフェニル及びその塩"]
[null,null,"ハ","ラジウム放射線、エックス線その他の有害放射線にさらされる業務（ガラスバッジを所有している者）",null,null,null,null,null,null,null,null,null,null,null,null,null,null,null,null,null,null,null,null,null,null,null,4,"製造禁止物質","[禁]4","石綿"]
[null,null,"ニ","土石、獣毛等のじんあい又は粉末を著しく飛散する場所における業務",null,null,null,null,null,null,null,null,null,null,null,null,null,null,null,null,null,null,null,null,null,null,null,5,"製造禁止物質","[禁]5","4-ニトロジフェニル及びその塩"]
[null,null,"ホ","異常気圧下における業務",null,null,null,null,null,null,null,null,null,null,null,null,null,null,null,null,null,null,null,null,null,null,null,6,"製造禁止物質","[禁]6","ビス（クロロメチル）エーテル"]
[null,null,"ヘ","削岩機、びょう打機等の使用によって、身体に著しい振動を与える業務",null,null,null,null,null,null,null,null,null,null,null,null,null,null,null,null,null,null,null,null,null,null,null,7,"製造禁止物質","[禁]7","β-ナフチルアミン及びその塩"]
[null,null,"ト","重量物の取扱い等重激な業務",null,null,null,null,null,null,null,null,null,null,null,null,null,null,null,null,null,null,null,null,null,null,null,8,"製造禁止物質","[禁]8","ベンゼンを含有するゴムのりで、その含有するベンゼンの容量が当該ゴムのりの溶剤（希釈剤を含む。）の5%を超えるもの"]
[null,null,"チ","ボイラー製造等強烈な騒音を発する場所における業務",null,null,null,null,null,null,null,null,null,null,null,null,null,null,null,null,null,null,null,null,null,null,null,9,"特定化学物質（第1類）","[特1]1","ジクロロベンジジン及びその塩",null,"1重量%以下","○"]
[null,null,"ヌ","深夜業を含む業務（22時～5時の時間帯に及ぶ業務に週１回以上又は月平均４回以上の頻度で継続的に従事する者）",null,null,null,null,null,null,null,null,null,null,null,null,null,null,null,null,null,null,null,null,null,null,null,10,"特定化学物質（第1類）","[特1]2","α-ナフチルアミン及びその塩",null,"1重量%以下","○"]
[null,null,"ル","水銀、砒素、黄リン、弗化水素酸、塩酸、硝酸、硫酸、青酸、か性アルカリ、石炭酸その他これらに準ずる有害物を\n常時繰り返し取り扱う業務（酸健診　裏面G）",null,null,null,null,null,null,null,null,null,null,null,null,null,null,null,null,null,null,null,null,null,null,null,11,"特定化学物質（第1類）","[特1]3","塩素化ビフェニル","PCB","1重量%以下"]
[null,null,"ヲ","鉛、水銀、クロム、砒素、黄リン、弗化水素酸、塩素、塩酸、硝酸、亜硫酸、硫酸、一酸化炭素、二酸化炭素、青酸、ベンゼン、\nアニリン、ホルムアルデヒドその他これらに準ずる有害物のガス、蒸気又は、粉じんが常時発散する場所における業務",null,null,null,null,null,null,null,null,null,null,null,null,null,null,null,null,null,null,null,null,null,null,null,12,"特定化学物質（第1類）","[特1]4","o-トリジン及びその塩",null,"1重量%以下","○"]
[null,null,"ワ","病原体によって汚染のおそれが著しい業務（特定病原体及びレベル３～４の病原体を扱う職員）",null,null,null,null,null,null,null,null,null,null,null,null,null,null,null,null,null,null,null,null,null,null,null,13,"特定化学物質（第1類）","[特1]5","ジアニシジン及びその塩",null,"1重量%以下","○"]
[null,"例：細菌実験等\n業務内容（具体的に）",null,null,null,null,null,null,null,null,null,null,null,null,null,null,null,null,null,null,null,null,null,null,null,null,null,14,"特定化学物質（第1類）","[特1]6","ベリリウム及びその化合物",null,"1重量%以下\n合金にあっては、3重量%以下","○"]
[null,null,null,null,null,null,null,null,null,null,null,null,null,null,null,null,null,null,null,null,null,null,null,null,null,null,null,15,"特定化学物質（第1類）","[特1]7","ベンゾトリクロリド",null,"0.5重量%以下","○"]
[null,"B　電離放射線健康診断",null,null,null,null,null,null,"業務従事（予定）者は電離放射線業務従事者問診票（別紙６）を必ず提出してください。",null,null,null,null,null,null,null,null,null,null,null,null,null,null,null,null,null,null,16,"特定化学物質（第2類）","[特2]1","アクリルアミド",null,"1重量%以下",null,null,"劇物"]
[null,null,"◆過去６月以内でラジウム放射線，エックス線その他の　　\n有害放射線にさらされる業務の実績が",null,null,null,null,null,null,null,null,null,null,null,null,null,null,"ある",null,null,"従事予定あり",null,null,null,"ない",null,null,17,"特定化学物質（第2類）","[特2]2","アクリロニトリル",null,"1重量%以下",null,null,"劇物"]
[null,null,null,null,null,null,null,null,null,null,null,null,null,null,null,null,null,null,null,"◆ガラスバッジの有無",null,"ある",null,null,"ない",null,null,18,"特定化学物質（第2類）","[特2]3","アルキル水銀化合物（アルキル基がメチル基又はエチル基である物に限る。）",null,"1重量%以下",null,null,"毒物"]
[null,"C 　高気圧業務健康診断",null,null,null,null,null,null,null,"　　高気圧業務健康診断を希望します（c・d・eは希望者）業務状況a・bは必須\t",null,null,null,null,null,null,null,null,null,null,null,null,null,null,null,null,null,19,"特定化学物質（第2類）","[特2]3の2","インジウム化合物",null,"1重量%以下","○"]
[null,null,null,null,null,null,null,null,null,null,null,null,null,null,null,"◆過去６月以内で高圧室内又は潜水作業を伴う業務の実績が",null,"ある",null,null,"従事予定あり",null,null,null,"ない",null,null,20,"特定化学物質（第2類）","[特2]3の3","エチルベンゼン",null,"1重量%以下","○","○",null,"1重量%を超える製剤は特別有機溶剤等"]
[null,"業務年数",null,null,"過去半年の\n業務状況",null,"a\n週５日以上",null,null,"b\n週１～４日",null,"c\n週１回未満",null,"d\n通年で連続的\n(月1回以上)",null,null,"e\n断続的不定期\n(年数回)直近月",null,null,null,"主な業務場所",null,null,null,null,null,null,21,"特定化学物質（第2類）","[特2]4","エチレンイミン",null,"1重量%以下","○"]
[null,null,null,"年",null,null,null,null,null,null,null,null,null,null,null,null,null,null,null,"月",null,null,null,null,null,null,null,22,"特定化学物質（第2類）","[特2]5","エチレンオキシド",null,"1重量%以下","○",null,"劇物"]
[null,"D 　騒音作業健康診断",null,null,null,null,null,null,null,"　　騒音作業健康診断を希望します（c・d・eは希望者）業務状況a・bは必須\t",null,null,null,null,null,null,null,null,null,null,null,null,null,null,null,null,null,23,"特定化学物質（第2類）","[特2]6","塩化ビニル",null,"1重量%以下","○"]
[null,null,null,null,null,null,null,null,null,null,null,null,null,null,null,"◆過去６月以内で騒音を伴う業務の実績が　　　　　　　　",null,"ある",null,null,"従事予定あり",null,null,null,"ない",null,null,24,"特定化学物質（第2類）","[特2]7","塩素",null,"1重量%以下",null,null,"劇物"]
[null,null,null,null,null,null,null,null,null,null,null,null,null,null,null,null,null,null,null,null,null,null,null,null,null,null,null,25,"特定化学物質（第2類）","[特2]8","オーラミン",null,"1重量%以下","○"]
[null,null,"化学物質取扱状況調査　（特定化学物質,有機溶剤,歯科健診）",null,null,null,null,null,null,null,null,null,null,null,null,null,null,null,null,null,null,null,null,null,null,null,null,26,"特定化学物質（第2類）","[特2]9","o-フタロジニトリル",null,"1重量%以下"]
[null,null,null,null,null,null,null,null,null,null,null,null,null,null,null,null,null,null,null,null,null,null,null,null,null,null,null,27,"特定化学物質（第2類）","[特2]\n10","カドミウム及びその化合物",null,"1重量%以下",null,null,"劇物"]
[null,1,"　　　過去６月以内において別表化学物質の使用実績がある。",null,null,null,null,null,null,null,null,null,null,null,null,null,null,"化学物質の使用実績",null,null,null,null,2,null,"年",null,null,28,"特定化学物質（第2類）","[特2]\n11","クロム酸及びその塩",null,"1重量%以下","○",null,"劇物"]
[null,2,"　　　A欄イ～ワの業務に常時従事する。\n",null,null,null,null,null,null,null,null,null,null,null,null,null,null,null,null,null,null,null,null,null,null,null,null,29,"特定化学物質（第2類）","[特2]11の2","クロロホルム",null,"1重量%以下","○","○","劇物","1重量%を超える製剤は特別有機溶剤等"]
[null,3,"　　　特定化学物質・有機溶剤による健康不調がある。",null,null,null,null,null,null,null,null,null,null,null,"ある場合はレ点し、その他は記入してください。",null,null,null,null,null,null,null,null,null,null,null,null,30,"特定化学物質（第2類）","[特2]12","クロロメチルメチルエーテル",null,"1重量%以下","○"]
[null,null,null,null,null,null,null,null,null,null,null,null,null,null,"歯の色素沈着",null,null,null,null,null,null,null,null,null,null,null,null,31,"特定化学物質（第2類）","[特2]13","五酸化バナジウム",null,"1重量%以下",null,null,"劇物"]
[null,null,"１．２．３のいずれかに該当する方は下記D～Fを記入してください。",null,null,null,null,null,null,null,null,null,null,null,null,null,null,null,null,null,null,null,null,null,null,null,null,32,"特定化学物質（第2類）","[特2]13の2","コバルト及びその無機化合物",null,"1重量%以下","○"]
[null,null,null,null,null,null,null,null,null,null,null,null,null,null,null,null,null,null,null,null,null,null,null,null,null,null,null,33,"特定化学物質（第2類）","[特2]14","コールタール",null,"5重量%以下","○"]
[null,"E　特定化学物質等健康診断",null,null,null,null,null,null,null,null,null,null,null,null,null,"特定化学物質の使用実績が",null,"ある＊",null,null,"従事予定あり",null,null,null,"ない",null,null,34,"特定化学物質（第2類）","[特2]15","酸化プロピレン",null,"1重量%以下","○"]
[null,"別表No1～No8１",null,null,null,null,null,"　　　　特定化学物質等健康診断を希望します（c・d・eは希望者）業務状況a・bは必須",null,null,null,null,null,null,null,null,null,null,null,null,null,null,null,null,null,null,null,35,"特定化学物質（第2類）","[特2]16","シアン化カリウム",null,"5重量%以下",null,null,"毒物"]
[null,null,"使用物質",null,null,null,null,"業務\n年数",null,"使用量/日",null,"a\n週５日以上",null,"b\n週１～４日",null,"c\n週１回未満",null,"d\n通年で連続的\n(月1回以上)",null,null,"e\n断続的不定期\n(年数回)直近月",null,null,"使用場所\n(実験室等)",null,null,null,36,"特定化学物質（第2類）","[特2]17","シアン化水素",null,"1重量%以下",null,null,"毒物"]
[null,null,"番号","物質名",null,null,null,null,null,null,null,null,null,null,null,null,null,null,null,null,null,null,null,null,null,null,null,37,"特定化学物質（第2類）","[特2]18","シアン化ナトリウム",null,"5重量%以下",null,null,"毒物"]
[null,1,29,{"$f":"IFERROR(VLOOKUP(C49,$AB$12:$AE$156,4,FALSE),\"\")","v":"クロロホルム"},null,null,null,2,"年",null,"ｍｌ",null,null,null,null,null,null,null,null,null,null,null,"月",999,null,null,null,38,"特定化学物質（第2類）","[特2]18の2","四塩化炭素",null,"1重量%以下","○","○","劇物","1重量%を超える製剤は特別有機溶剤等"]
[null,2,65,{"$f":"IFERROR(VLOOKUP(C50,$AB$12:$AE$156,4,FALSE),\"\")","v":"ホルムアルデヒド"},null,null,null,2,"年",null,"ｍｌ",null,null,null,null,null,null,null,null,null,null,null,"月",999,null,null,null,39,"特定化学物質（第2類）","[特2]18の3","1,4-ジオキサン",null,"1重量%以下","○","○",null,"1重量%を超える製剤は特別有機溶剤等"]
[null,3,null,"",null,null,null,null,"年",null,"ｍｌ",null,null,null,null,null,null,null,null,null,null,null,"月",null,null,null,null,40,"特定化学物質（第2類）","[特2]18の4","1,2-ジクロロエタン","二塩化エチレン","1重量%以下","○","○",null,"1重量%を超える製剤は特別有機溶剤等"]
[null,4,null,"",null,null,null,null,"年",null,"ｍｌ",null,null,null,null,null,null,null,null,null,null,null,"月",null,null,null,null,41,"特定化学物質（第2類）","[特2]19","3,3'-ジクロロ-4,4'-ジアミノジフェニルメタン",null,"1重量%以下","○"]
[null,5,null,"",null,null,null,null,"年",null,"ｍｌ",null,null,null,null,null,null,null,null,null,null,null,"月",null,null,null,null,42,"特定化学物質（第2類）","[特2]19の2","1,2-ジクロロプロパン",null,"1重量%以下","○","○",null,"1重量%を超える製剤は特別有機溶剤等"]
[null,null,null,"↑ホルムアルデヒド,エチレンオキシドガスに係る業務は特化物健診対象外ですが特定業務従事者健診の対象者です",null,null,null,null,null,null,null,null,null,null,null,null,null,null,null,null,null,null,null,null,null,null,null,43,"特定化学物質（第2類）","[特2]19の3","ジクロロメタン","二塩化メチレン","1重量%以下","○","○",null,"1重量%を超える製剤は特別有機溶剤等"]
[null,"F　有機溶剤等健康診断",null,null,null,null,null,null,null,null,null,null,null,null,null,"有機溶剤の使用実績が",null,"ある＊",null,null,"従事予定あり",null,null,null,"ない",null,null,44,"特定化学物質（第2類）","[特2]19の4","ジメチル-2,2-ジクロロビニルホスフェイト","DDVP","1重量%以下","○",null,"劇物"]
[null,"別表No82～No135",null,null,null,null,null,"　　　　有機溶剤等健康診断を希望します（c・d・eは希望者）業務状況a・bは必須",null,null,null,null,null,null,null,null,null,null,null,null,null,null,null,null,null,null,null,45,"特定化学物質（第2類）","[特2]19の5","1,1-ジメチルヒドラジン",null,"1重量%以下","○",null,"毒物"]
[null,null,"使用物質",null,null,null,null,"業務\n年数",null,"使用量/日",null,"a\n週５日以上",null,"b\n週１～４日",null,"c\n週１回未満",null,"d\n通年で連続的\n(月1回以上)",null,null,"e\n断続的不定期\n(年数回)直近月",null,null,"使用場所\n(実験室等)",null,null,null,46,"特定化学物質（第2類）","[特2]20","臭化メチル",null,"1重量%以下",null,null,"劇物"]
[null,null,"番号","物質名",null,null,null,null,null,null,null,null,null,null,null,null,null,null,null,null,null,null,null,null,null,null,null,47,"特定化学物質（第2類）","[特2]21","重クロム酸及びその塩",null,"1重量%以下","○",null,"劇物"]
[null,1,92,{"$f":"IFERROR(VLOOKUP(C59,$AB$12:$AE$156,4,FALSE),\"\")","v":"キシレン"},null,null,null,2,"年",null,"ｍｌ",null,null,null,null,null,null,null,null,null,null,null,"月",999,null,null,null,48,"特定化学物質（第2類）","[特2]22","水銀及びその無機化合物（硫化水銀を除く。）",null,"1重量%以下",null,null,"毒物"]
[null,2,null,{"$f":"IFERROR(VLOOKUP(C60,$AB$12:$AE$156,4,FALSE),\"\")","v":""},null,null,null,null,"年",null,"ｍｌ",null,null,null,null,null,null,null,null,null,null,null,"月",null,null,null,null,49,"特定化学物質（第2類）","[特2]22の2","スチレン",null,"1重量%以下","○","○",null,"1重量%を超える製剤は特別有機溶剤等"]
[null,3,null,"",null,null,null,null,"年",null,"ｍｌ",null,null,null,null,null,null,null,null,null,null,null,"月",null,null,null,null,50,"特定化学物質（第2類）","[特2]\n22の3","1,1,2,2-テトラクロロエタン","四塩化アセチレン","1重量%以下","○","○",null,"1重量%を超える製剤は特別有機溶剤等"]
[null,4,null,"",null,null,null,null,"年",null,"ｍｌ",null,null,null,null,null,null,null,null,null,null,null,"月",null,null,null,null,51,"特定化学物質（第2類）","[特2]22の4","テトラクロロエチレン","パークロロエチレン","1重量%以下","○","○",null,"1重量%を超える製剤は特別有機溶剤等"]
[null,5,null,"",null,null,null,null,"年",null,"ｍｌ",null,null,null,null,null,null,null,null,null,null,null,"月",null,null,null,null,52,"特定化学物質（第2類）","[特2]22の5","トリクロロエチレン",null,"1重量%以下","○","○",null,"1重量%を超える製剤は特別有機溶剤等"]
[null,null,null,null,null,null,null,null,null,null,null,null,null,null,null,null,null,null,null,null,null,null,null,null,null,null,null,53,"特定化学物質（第2類）","[特2]23","トリレンジイソシアネート",null,"1重量%以下"]
[null,"G 　歯科医師による健康診断",null,null,null,null,null,null,null,null,null,null,null,null,null,null,null,"ある＊",null,null,"従事予定あり",null,null,null,"ない",null,null,54,"特定化学物質（第2類）","[特2]23の2","ナフタレン",null,"1重量%以下","○",null,null,"平成27年法改正により追加"]
[null,"別表No200～No206",null,null,null,null,null,"　　　　歯科医師による健康診断を希望します（c・d・eは希望者）業務状況a・bは必須",null,null,null,null,null,null,null,null,null,null,null,null,null,null,null,null,null,null,null,55,"特定化学物質（第2類）","[特2]23の3","ニッケル化合物（24に掲げる物を除き、粉状の物に限る。）",null,"1重量%以下","○"]
[null,null,"使用物質",null,null,null,null,"業務\n年数",null,"使用量/日",null,"a\n週５日以上",null,"b\n週１～４日",null,"c\n週１回未満",null,"d\n通年で連続的\n(月1回以上)",null,null,"e\n断続的不定期\n(年数回)直近月",null,null,"使用場所\n(実験室等)",null,null,null,56,"特定化学物質（第2類）","[特2]24","ニッケルカルボニル",null,"1重量%以下","○",null,"劇物"]
[null,null,"番号","物質名",null,null,null,null,null,null,null,null,null,null,null,null,null,null,null,null,null,null,null,null,null,null,null,57,"特定化学物質（第2類）","[特2]25","ニトログリコール",null,"1重量%以下"]
[null,1,200,{"$f":"IFERROR(VLOOKUP(C69,$AB$12:$AE$156,4,FALSE),\"\")","v":"塩酸"},null,null,null,2,"年",null,"ｍｌ",null,null,null,null,null,null,null,null,null,null,null,"月",999,null,null,null,58,"特定化学物質（第2類）","[特2]26","p-ジメチルアミノアゾベンゼン",null,"1重量%以下","○"]
[null,2,202,"硫酸",null,null,null,2,"年",null,"ｍｌ",null,null,null,null,null,null,null,null,null,null,null,"月",999,null,null,null,59,"特定化学物質（第2類）","[特2]27","p-ニトロクロロベンゼン",null,"5重量%以下"]
[null,3,null,null,null,null,null,null,"年",null,"ｍｌ",null,null,null,null,null,null,null,null,null,null,null,"月",null,null,null,null,60,"特定化学物質（第2類）","[特2]27の2","砒素及びその化合物（アルシン及び砒化ガリウムを除く。）",null,"1重量%以下","○",null,"毒物","ヒ素"]
[null,4,null,"",null,null,null,null,"年",null,"ｍｌ",null,null,null,null,null,null,null,null,null,null,null,"月",null,null,null,null,61,"特定化学物質（第2類）","[特2]28","弗化水素",null,"5重量%以下",null,null,"毒物","フッ化水素"]
[null,5,null,"",null,null,null,null,"年",null,"ｍｌ",null,null,null,null,null,null,null,null,null,null,null,"月",null,null,null,null,62,"特定化学物質（第2類）","[特2]29","β-プロピオラクトン",null,"1重量%以下","○"]
[null,null,null,null,null,null,null,null,null,null,null,null,null,null,null,null,null,null,null,null,null,null,null,null,null,null,null,63,"特定化学物質（第2類）","[特2]30","ベンゼン",null,"1重量%以下","○"]
[null,null,null,null,null,null,null,null,null,null,null,null,null,null,null,null,null,null,null,null,null,null,null,null,null,null,null,64,"特定化学物質（第2類）","[特2]31","ペンタクロロフェノール及びそのナトリウム塩","PCP","1重量%以下","○",null,"劇物"]
[null,null,null,null,null,null,null,null,null,null,null,null,null,null,null,null,null,null,null,null,null,null,null,null,null,null,null,65,"特定化学物質（第2類）","[特2]31の2","ホルムアルデヒド",null,"1重量%以下","○",null,"劇物"]
[null,null,null,null,null,null,null,null,null,null,null,null,null,null,null,null,null,null,null,null,null,null,null,null,null,null,null,66,"特定化学物質（第2類）","[特2]32","マゼンタ",null,"1重量%以下","○"]
[null,null,null,null,null,null,null,null,null,null,null,null,null,null,null,null,null,null,null,null,null,null,null,null,null,null,null,67,"特定化学物質（第2類）","[特2]33","マンガン及びその化合物（塩基性酸化マンガンを除く。）",null,"1重量%以下"]
[null,null,null,null,null,null,null,null,null,null,null,null,null,null,null,null,null,null,null,null,null,null,null,null,null,null,null,68,"特定化学物質（第2類）","[特2]33の2","メチルイソブチルケトン",null,"1重量%以下","○","○",null,"1重量%を超える製剤は特別有機溶剤等"]
[null,null,null,null,null,null,null,null,null,null,null,null,null,null,null,null,null,null,null,null,null,null,null,null,null,null,null,69,"特定化学物質（第2類）","[特2]34","沃化メチル",null,"1重量%以下",null,null,"劇物","ヨウ化メチル"]
[null,null,null,null,null,null,null,null,null,null,null,null,null,null,null,null,null,null,null,null,null,null,null,null,null,null,null,70,"特定化学物質（第2類）","[特2]34の2","リフラクトリーセラミックファイバー","RCF","1重量%以下",null,null,null,"平成27年法改正により追加"]
[null,null,null,null,null,null,null,null,null,null,null,null,null,null,null,null,null,null,null,null,null,null,null,null,null,null,null,71,"特定化学物質（第2類）","[特2]35","硫化水素",null,"1重量%以下",null,null,"劇物"]
[null,null,null,null,null,null,null,null,null,null,null,null,null,null,null,null,null,null,null,null,null,null,null,null,null,null,null,72,"特定化学物質（第2類）","[特2]36","硫酸ジメチル",null,"1重量%以下",null,null,"劇物"]
[null,null,null,null,null,null,null,null,null,null,null,null,null,null,null,null,null,null,null,null,null,null,null,null,null,null,null,73,"特定化学物質（第2類）","[特2]37","エチルベンゼン、クロロホルム、四塩化炭素、1,4-ジオキサン、1,2-ジクロロエタン、1.2-ジクロロプロパン、ジクロロメタン、スチレン、1,1,2,2-テトラクロロエタン、テトラクロロエチレン、トリクロロエチレン、メチルイソブチルケトン又は有機溶剤を含有する製剤その他の物。ただし、次（右）に掲げるものを除く。　（略）\n　　　　　　　　　　　　　　",null,"イ　（特別有機溶剤等）\nロ　特別有機溶剤等の合計含有量が5重量%以下の製剤\nハ　有機則第1条第1項第2号に規定する有機溶剤含有物（イに掲げるものを除く。）"]
[null,null,null,null,null,null,null,null,null,null,null,null,null,null,null,null,null,null,null,null,null,null,null,null,null,null,null,74,"特定化学物質（第3類）","[特3]1","アンモニア",null,"1重量%以下",null,null,"劇物"]
[null,null,null,null,null,null,null,null,null,null,null,null,null,null,null,null,null,null,null,null,null,null,null,null,null,null,null,75,"特定化学物質（第3類）","[特3]2","一酸化炭素",null,"1重量%以下"]
[null,null,null,null,null,null,null,null,null,null,null,null,null,null,null,null,null,null,null,null,null,null,null,null,null,null,null,76,"特定化学物質（第3類）","[特3]3","塩化水素",null,"1重量%以下",null,null,"劇物"]
[null,null,null,null,null,null,null,null,null,null,null,null,null,null,null,null,null,null,null,null,null,null,null,null,null,null,null,77,"特定化学物質（第3類）","[特3]4","硝酸",null,"1重量%以下",null,null,"劇物"]
[null,null,null,null,null,null,null,null,null,null,null,null,null,null,null,null,null,null,null,null,null,null,null,null,null,null,null,78,"特定化学物質（第3類）","[特3]5","二酸化硫黄",null,"1重量%以下"]
[null,null,null,null,null,null,null,null,null,null,null,null,null,null,null,null,null,null,null,null,null,null,null,null,null,null,null,79,"特定化学物質（第3類）","[特3]6","フェノール",null,"5重量%以下",null,null,"劇物"]
[null,null,null,null,null,null,null,null,null,null,null,null,null,null,null,null,null,null,null,null,null,null,null,null,null,null,null,80,"特定化学物質（第3類）","[特3]7","ホスゲン",null,"1重量%以下",null,null,"劇物"]
[null,null,null,null,null,null,null,null,null,null,null,null,null,null,null,null,null,null,null,null,null,null,null,null,null,null,null,81,"特定化学物質（第3類）","[特3]8","硫酸",null,"1重量%以下",null,null,"劇物"]
[null,null,null,null,null,null,null,null,null,null,null,null,null,null,null,null,null,null,null,null,null,null,null,null,null,null,null,82,"有機溶剤（第2類）","[有]1","アセトン"]
[null,null,null,null,null,null,null,null,null,null,null,null,null,null,null,null,null,null,null,null,null,null,null,null,null,null,null,83,"有機溶剤（第2類）","[有]2","イソブチルアルコール"]
[null,null,null,null,null,null,null,null,null,null,null,null,null,null,null,null,null,null,null,null,null,null,null,null,null,null,null,84,"有機溶剤（第2類）","[有]3","イソプロピルアルコール"]
[null,null,null,null,null,null,null,null,null,null,null,null,null,null,null,null,null,null,null,null,null,null,null,null,null,null,null,85,"有機溶剤（第2類）","[有]4","イソペンチルアルコール","イソアミルアルコール"]
[null,null,null,null,null,null,null,null,null,null,null,null,null,null,null,null,null,null,null,null,null,null,null,null,null,null,null,86,"有機溶剤（第2類）","[有]5","エチルエーテル"]
[null,null,null,null,null,null,null,null,null,null,null,null,null,null,null,null,null,null,null,null,null,null,null,null,null,null,null,87,"有機溶剤（第2類）","[有]6","エチレングリコールモノエチルエーテル","セロソルブ"]
[null,null,null,null,null,null,null,null,null,null,null,null,null,null,null,null,null,null,null,null,null,null,null,null,null,null,null,88,"有機溶剤（第2類）","[有]7","エチレングリコールモノエチルエーテルアセテート","セロソルブアセテート"]
[null,null,null,null,null,null,null,null,null,null,null,null,null,null,null,null,null,null,null,null,null,null,null,null,null,null,null,89,"有機溶剤（第2類）","[有]8","エチレングリコールモノ-n-ブチルエーテル","ブチルセロソルブ"]
[null,null,null,null,null,null,null,null,null,null,null,null,null,null,null,null,null,null,null,null,null,null,null,null,null,null,null,90,"有機溶剤（第2類）","[有]9","エチレングリコールモノメチルエーテル","メチルセロソルブ"]
[null,null,null,null,null,null,null,null,null,null,null,null,null,null,null,null,null,null,null,null,null,null,null,null,null,null,null,91,"有機溶剤（第2類）","[有]10","o-ジクロロベンゼン"]
[null,null,null,null,null,null,null,null,null,null,null,null,null,null,null,null,null,null,null,null,null,null,null,null,null,null,null,92,"有機溶剤（第2類）","[有]11","キシレン",null,null,null,null,"劇物"]
[null,null,null,null,null,null,null,null,null,null,null,null,null,null,null,null,null,null,null,null,null,null,null,null,null,null,null,93,"有機溶剤（第2類）","[有]12","クレゾール",null,null,null,null,"劇物"]
[null,null,null,null,null,null,null,null,null,null,null,null,null,null,null,null,null,null,null,null,null,null,null,null,null,null,null,94,"有機溶剤（第2類）","[有]13","クロロベンゼン"]
[null,null,null,null,null,null,null,null,null,null,null,null,null,null,null,null,null,null,null,null,null,null,null,null,null,null,null,95,"有機溶剤（第1類）","[有]14","削除　特定化学物質（特別有機溶剤）に移行。",null,null,null,null,null,"クロロホルムのこと。"]
[null,null,null,null,null,null,null,null,null,null,null,null,null,null,null,null,null,null,null,null,null,null,null,null,null,null,null,96,"有機溶剤（第2類）","[有]15","酢酸イソブチル"]
[null,null,null,null,null,null,null,null,null,null,null,null,null,null,null,null,null,null,null,null,null,null,null,null,null,null,null,97,"有機溶剤（第2類）","[有]16","酢酸イソプロピル"]
[null,null,null,null,null,null,null,null,null,null,null,null,null,null,null,null,null,null,null,null,null,null,null,null,null,null,null,98,"有機溶剤（第2類）","[有]17","酢酸イソペンチル","酢酸イソアミル"]
[null,null,null,null,null,null,null,null,null,null,null,null,null,null,null,null,null,null,null,null,null,null,null,null,null,null,null,99,"有機溶剤（第2類）","[有]18","酢酸エチル",null,null,null,null,"劇物"]
[null,null,null,null,null,null,null,null,null,null,null,null,null,null,null,null,null,null,null,null,null,null,null,null,null,null,null,100,"有機溶剤（第2類）","[有]19","酢酸n-ブチル"]
[null,null,null,null,null,null,null,null,null,null,null,null,null,null,null,null,null,null,null,null,null,null,null,null,null,null,null,101,"有機溶剤（第2類）","[有]20","酢酸n-プロピル"]
[null,null,null,null,null,null,null,null,null,null,null,null,null,null,null,null,null,null,null,null,null,null,null,null,null,null,null,102,"有機溶剤（第2類）","[有]21","酢酸n-ペンチル","酢酸n-アミル"]
[null,null,null,null,null,null,null,null,null,null,null,null,null,null,null,null,null,null,null,null,null,null,null,null,null,null,null,103,"有機溶剤（第2類）","[有]22","酢酸メチル"]
[null,null,null,null,null,null,null,null,null,null,null,null,null,null,null,null,null,null,null,null,null,null,null,null,null,null,null,104,"有機溶剤（第1類）","[有]23","削除　特定化学物質（特別有機溶剤）に移行。",null,null,null,null,null,"四塩化炭素のこと。"]
[null,null,null,null,null,null,null,null,null,null,null,null,null,null,null,null,null,null,null,null,null,null,null,null,null,null,null,105,"有機溶剤（第2類）","[有]24","シクロヘキサノール"]
[null,null,null,null,null,null,null,null,null,null,null,null,null,null,null,null,null,null,null,null,null,null,null,null,null,null,null,106,"有機溶剤（第2類）","[有]25","シクロヘキサノン"]
[null,null,null,null,null,null,null,null,null,null,null,null,null,null,null,null,null,null,null,null,null,null,null,null,null,null,null,107,"有機溶剤（第2類）","[有]26","削除　特定化学物質（特別有機溶剤）に移行。",null,null,null,null,null,"1,4-ジオキサンのこと。"]
[null,null,null,null,null,null,null,null,null,null,null,null,null,null,null,null,null,null,null,null,null,null,null,null,null,null,null,108,"有機溶剤（第2類）","[有]27","削除　特定化学物質（特別有機溶剤）に移行。",null,null,null,null,null,"1,2-ジクロロエタンのこと。"]
[null,null,null,null,null,null,null,null,null,null,null,null,null,null,null,null,null,null,null,null,null,null,null,null,null,null,null,109,"有機溶剤（第1類）","[有]28","1,2-ジクロロエチレン","二塩化アセチレン"]
[null,null,null,null,null,null,null,null,null,null,null,null,null,null,null,null,null,null,null,null,null,null,null,null,null,null,null,110,"有機溶剤（第2類）","[有]29","削除　特定化学物質（特別有機溶剤）に移行。",null,null,null,null,null,"ジクロロメタンのこと。"]
[null,null,null,null,null,null,null,null,null,null,null,null,null,null,null,null,null,null,null,null,null,null,null,null,null,null,null,111,"有機溶剤（第2類）","[有]30","N,N-ジメチルホルムアミド"]
[null,null,null,null,null,null,null,null,null,null,null,null,null,null,null,null,null,null,null,null,null,null,null,null,null,null,null,112,"有機溶剤（第2類）","[有]31","削除　特定化学物質（特別有機溶剤）に移行。",null,null,null,null,null,"スチレンのこと。"]
[null,null,null,null,null,null,null,null,null,null,null,null,null,null,null,null,null,null,null,null,null,null,null,null,null,null,null,113,"有機溶剤（第1類）","[有]32","削除　特定化学物質（特別有機溶剤）に移行。",null,null,null,null,null,"1,1,2,2-テトラクロロエタンのこと。"]
[null,null,null,null,null,null,null,null,null,null,null,null,null,null,null,null,null,null,null,null,null,null,null,null,null,null,null,114,"有機溶剤（第2類）","[有]33","削除　特定化学物質（特別有機溶剤）に移行。",null,null,null,null,null,"テトラクロロエチレンのこと。"]
[null,null,null,null,null,null,null,null,null,null,null,null,null,null,null,null,null,null,null,null,null,null,null,null,null,null,null,115,"有機溶剤（第2類）","[有]34","テトラヒドロフラン"]
[null,null,null,null,null,null,null,null,null,null,null,null,null,null,null,null,null,null,null,null,null,null,null,null,null,null,null,116,"有機溶剤（第2類）","[有]35","1,1,1-トリクロロエタン"]
[null,null,null,null,null,null,null,null,null,null,null,null,null,null,null,null,null,null,null,null,null,null,null,null,null,null,null,117,"有機溶剤（第1類）","[有]36","削除　特定化学物質（特別有機溶剤）に移行。",null,null,null,null,null,"トリクロロエチレンのこと。"]
[null,null,null,null,null,null,null,null,null,null,null,null,null,null,null,null,null,null,null,null,null,null,null,null,null,null,null,118,"有機溶剤（第2類）","[有]37","トルエン",null,null,null,null,"劇物"]
[null,null,null,null,null,null,null,null,null,null,null,null,null,null,null,null,null,null,null,null,null,null,null,null,null,null,null,119,"有機溶剤（第1類）","[有]38","二硫化炭素",null,null,null,null,"劇物"]
[null,null,null,null,null,null,null,null,null,null,null,null,null,null,null,null,null,null,null,null,null,null,null,null,null,null,null,120,"有機溶剤（第2類）","[有]39","ノルマルヘキサン"]
[null,null,null,null,null,null,null,null,null,null,null,null,null,null,null,null,null,null,null,null,null,null,null,null,null,null,null,121,"有機溶剤（第2類）","[有]40","1-ブタノール"]
[null,null,null,null,null,null,null,null,null,null,null,null,null,null,null,null,null,null,null,null,null,null,null,null,null,null,null,122,"有機溶剤（第2類）","[有]41","2-ブタノール"]
[null,null,null,null,null,null,null,null,null,null,null,null,null,null,null,null,null,null,null,null,null,null,null,null,null,null,null,123,"有機溶剤（第2類）","[有]42","メタノール",null,null,null,null,"劇物"]
[null,null,null,null,null,null,null,null,null,null,null,null,null,null,null,null,null,null,null,null,null,null,null,null,null,null,null,124,"有機溶剤（第2類）","[有]43","削除　特定化学物質（特別有機溶剤）に移行。",null,null,null,null,null,"メチルイソブチルケトンのこと。"]
[null,null,null,null,null,null,null,null,null,null,null,null,null,null,null,null,null,null,null,null,null,null,null,null,null,null,null,125,"有機溶剤（第2類）","[有]44","メチルエチルケトン",null,null,null,null,"劇物"]
[null,null,null,null,null,null,null,null,null,null,null,null,null,null,null,null,null,null,null,null,null,null,null,null,null,null,null,126,"有機溶剤（第2類）","[有]45","メチルシクロヘキサノール"]
[null,null,null,null,null,null,null,null,null,null,null,null,null,null,null,null,null,null,null,null,null,null,null,null,null,null,null,127,"有機溶剤（第2類）","[有]46","メチルシクロヘキサノン"]
[null,null,null,null,null,null,null,null,null,null,null,null,null,null,null,null,null,null,null,null,null,null,null,null,null,null,null,128,"有機溶剤（第2類）","[有]47","メチル-n-ブチルケトン"]
[null,null,null,null,null,null,null,null,null,null,null,null,null,null,null,null,null,null,null,null,null,null,null,null,null,null,null,129,"有機溶剤（第3類）","[有]48","ガソリン"]
[null,null,null,null,null,null,null,null,null,null,null,null,null,null,null,null,null,null,null,null,null,null,null,null,null,null,null,130,"有機溶剤（第3類）","[有]49","コールタールナフサ（ソルベントナフサを含む。）"]
[null,null,null,null,null,null,null,null,null,null,null,null,null,null,null,null,null,null,null,null,null,null,null,null,null,null,null,131,"有機溶剤（第3類）","[有]50","石油エーテル"]
[null,null,null,null,null,null,null,null,null,null,null,null,null,null,null,null,null,null,null,null,null,null,null,null,null,null,null,132,"有機溶剤（第3類）","[有]51","石油ナフサ"]
[null,null,null,null,null,null,null,null,null,null,null,null,null,null,null,null,null,null,null,null,null,null,null,null,null,null,null,133,"有機溶剤（第3類）","[有]52","石油ベンジン"]
[null,null,null,null,null,null,null,null,null,null,null,null,null,null,null,null,null,null,null,null,null,null,null,null,null,null,null,134,"有機溶剤（第3類）","[有]53","テレビン油"]
[null,null,null,null,null,null,null,null,null,null,null,null,null,null,null,null,null,null,null,null,null,null,null,null,null,null,null,135,"有機溶剤（第3類）","[有]54","ミネラルスピリツト（ミネラルシンナー、ペトロリウムスピリツト、ホワイトスピリツト及びミネラルターペンを含む。）"]
[]
[]
[null,null,null,null,null,null,null,null,null,null,null,null,null,null,null,null,null,null,null,null,null,null,null,null,null,null,null,"酸健診（歯科検診対象）"]
[null,null,null,null,null,null,null,null,null,null,null,null,null,null,null,null,null,null,null,null,null,null,null,null,null,null,null,200,null,null,"塩酸"]
[null,null,null,null,null,null,null,null,null,null,null,null,null,null,null,null,null,null,null,null,null,null,null,null,null,null,null,201,"特定化学物質（第3類）","[特3]4","硝酸"]
[null,null,null,null,null,null,null,null,null,null,null,null,null,null,null,null,null,null,null,null,null,null,null,null,null,null,null,202,"特定化学物質（第3類）","[特3]8","硫酸"]
[null,null,null,null,null,null,null,null,null,null,null,null,null,null,null,null,null,null,null,null,null,null,null,null,null,null,null,203,null,null,"亜硫酸"]
[null,null,null,null,null,null,null,null,null,null,null,null,null,null,null,null,null,null,null,null,null,null,null,null,null,null,null,204,"特定化学物質（第2類）","[特2]28","弗化水素"]
[null,null,null,null,null,null,null,null,null,null,null,null,null,null,null,null,null,null,null,null,null,null,null,null,null,null,null,205,"製造禁止物質","[禁]1","黄リン"]
[null,null,null,null,null,null,null,null,null,null,null,null,null,null,null,null,null,null,null,null,null,null,null,null,null,null,null,206,null,null,"その他歯又はその支持組織に有害な物"]

{"sheet":"別表　化学物質一覧表（印刷用）","index":2,"n_rows":160,"n_cols":10,"rows_kept":160,"cut":false,"hidden":false,"merged":[[0,2,0,8]]}
[null,null,"特殊健康診断用化学物質一覧表        2019年４月",null,null,null,null,null,null,"別表"]
[]
[]
[]
[]
[]
[]
[]
[]
[]
[]
[]
[]
[]
[]
["#","区分","番号","官報告示名","別名","製剤の除外規定","特別\n管理物質","特別\n有機溶剤","毒劇物","特記事項"]
[1,"製造禁止物質","[禁]1","黄りんマッチ"]
[2,"製造禁止物質","[禁]2","ベンジジン及びその塩"]
[3,"製造禁止物質","[禁]3","4-アミノジフェニル及びその塩"]
[4,"製造禁止物質","[禁]4","石綿"]
[5,"製造禁止物質","[禁]5","4-ニトロジフェニル及びその塩"]
[6,"製造禁止物質","[禁]6","ビス（クロロメチル）エーテル"]
[7,"製造禁止物質","[禁]7","β-ナフチルアミン及びその塩"]
[8,"製造禁止物質","[禁]8","ベンゼンを含有するゴムのりで、その含有するベンゼンの容量が当該ゴムのりの溶剤（希釈剤を含む。）の5%を超えるもの"]
[9,"特定化学物質（第1類）","[特1]1","ジクロロベンジジン及びその塩",null,"1重量%以下","○"]
[10,"特定化学物質（第1類）","[特1]2","α-ナフチルアミン及びその塩",null,"1重量%以下","○"]
[11,"特定化学物質（第1類）","[特1]3","塩素化ビフェニル","PCB","1重量%以下"]
[12,"特定化学物質（第1類）","[特1]4","o-トリジン及びその塩",null,"1重量%以下","○"]
[13,"特定化学物質（第1類）","[特1]5","ジアニシジン及びその塩",null,"1重量%以下","○"]
[14,"特定化学物質（第1類）","[特1]6","ベリリウム及びその化合物",null,"1重量%以下\n合金にあっては、3重量%以下","○"]
[15,"特定化学物質（第1類）","[特1]7","ベンゾトリクロリド",null,"0.5重量%以下","○"]
[16,"特定化学物質（第2類）","[特2]1","アクリルアミド",null,"1重量%以下",null,null,"劇物"]
[17,"特定化学物質（第2類）","[特2]2","アクリロニトリル",null,"1重量%以下",null,null,"劇物"]
[18,"特定化学物質（第2類）","[特2]3","アルキル水銀化合物（アルキル基がメチル基又はエチル基である物に限る。）",null,"1重量%以下",null,null,"毒物"]
[19,"特定化学物質（第2類）","[特2]\n3の2","インジウム化合物",null,"1重量%以下","○"]
[20,"特定化学物質（第2類）","[特2]\n3の3","エチルベンゼン",null,"1重量%以下","○","○",null,"1重量%を超える製剤は特別有機溶剤等"]
[21,"特定化学物質（第2類）","[特2]4","エチレンイミン",null,"1重量%以下","○"]
[22,"特定化学物質（第2類）","[特2]5","エチレンオキシド",null,"1重量%以下","○",null,"劇物"]
[23,"特定化学物質（第2類）","[特2]6","塩化ビニル",null,"1重量%以下","○"]
[24,"特定化学物質（第2類）","[特2]7","塩素",null,"1重量%以下",null,null,"劇物"]
[25,"特定化学物質（第2類）","[特2]8","オーラミン",null,"1重量%以下","○"]
[26,"特定化学物質（第2類）","[特2]9","o-フタロジニトリル",null,"1重量%以下"]
[27,"特定化学物質（第2類）","[特2]\n10","カドミウム及びその化合物",null,"1重量%以下",null,null,"劇物"]
[28,"特定化学物質（第2類）","[特2]\n11","クロム酸及びその塩",null,"1重量%以下","○",null,"劇物"]
[29,"特定化学物質（第2類）","[特2]\n11の2","クロロホルム",null,"1重量%以下","○","○","劇物","1重量%を超える製剤は特別有機溶剤等"]
[30,"特定化学物質（第2類）","[特2]\n12","クロロメチルメチルエーテル",null,"1重量%以下","○"]
[31,"特定化学物質（第2類）","[特2]\n13","五酸化バナジウム",null,"1重量%以下",null,null,"劇物"]
[32,"特定化学物質（第2類）","[特2]\n13の2","コバルト及びその無機化合物",null,"1重量%以下","○"]
[33,"特定化学物質（第2類）","[特2]\n14","コールタール",null,"5重量%以下","○"]
[34,"特定化学物質（第2類）","[特2]\n15","酸化プロピレン",null,"1重量%以下","○"]
[35,"特定化学物質（第2類）","[特2]\n16","シアン化カリウム",null,"5重量%以下",null,null,"毒物"]
[36,"特定化学物質（第2類）","[特2]\n17","シアン化水素",null,"1重量%以下",null,null,"毒物"]
[37,"特定化学物質（第2類）","[特2]\n18","シアン化ナトリウム",null,"5重量%以下",null,null,"毒物"]
[38,"特定化学物質（第2類）","[特2]\n18の2","四塩化炭素",null,"1重量%以下","○","○","劇物","1重量%を超える製剤は特別有機溶剤等"]
[39,"特定化学物質（第2類）","[特2]\n18の3","1,4-ジオキサン",null,"1重量%以下","○","○",null,"1重量%を超える製剤は特別有機溶剤等"]
[40,"特定化学物質（第2類）","[特2]\n18の4","1,2-ジクロロエタン","二塩化エチレン","1重量%以下","○","○",null,"1重量%を超える製剤は特別有機溶剤等"]
[41,"特定化学物質（第2類）","[特2]\n19","3,3'-ジクロロ-4,4'-ジアミノジフェニルメタン",null,"1重量%以下","○"]
[42,"特定化学物質（第2類）","[特2]\n19の2","1,2-ジクロロプロパン",null,"1重量%以下","○","○",null,"1重量%を超える製剤は特別有機溶剤等"]
[43,"特定化学物質（第2類）","[特2]\n19の3","ジクロロメタン","二塩化メチレン","1重量%以下","○","○",null,"1重量%を超える製剤は特別有機溶剤等"]
[44,"特定化学物質（第2類）","[特2]\n19の4","ジメチル-2,2-ジクロロビニルホスフェイト","DDVP","1重量%以下","○",null,"劇物"]
[45,"特定化学物質（第2類）","[特2]\n19の5","1,1-ジメチルヒドラジン",null,"1重量%以下","○",null,"毒物"]
[46,"特定化学物質（第2類）","[特2]\n20","臭化メチル",null,"1重量%以下",null,null,"劇物"]
[47,"特定化学物質（第2類）","[特2]\n21","重クロム酸及びその塩",null,"1重量%以下","○",null,"劇物"]
[48,"特定化学物質（第2類）","[特2]\n22","水銀及びその無機化合物（硫化水銀を除く。）",null,"1重量%以下",null,null,"毒物"]
[49,"特定化学物質（第2類）","[特2]\n22の2","スチレン",null,"1重量%以下","○","○",null,"1重量%を超える製剤は特別有機溶剤等"]
[50,"特定化学物質（第2類）","[特2]\n22の3","1,1,2,2-テトラクロロエタン","四塩化アセチレン","1重量%以下","○","○",null,"1重量%を超える製剤は特別有機溶剤等"]
[51,"特定化学物質（第2類）","[特2]\n22の4","テトラクロロエチレン","パークロロエチレン","1重量%以下","○","○",null,"1重量%を超える製剤は特別有機溶剤等"]
[52,"特定化学物質（第2類）","[特2]\n22の5","トリクロロエチレン",null,"1重量%以下","○","○",null,"1重量%を超える製剤は特別有機溶剤等"]
[53,"特定化学物質（第2類）","[特2]\n23","トリレンジイソシアネート",null,"1重量%以下"]
[54,"特定化学物質（第2類）","[特2]\n23の2","ナフタレン",null,"1重量%以下","○",null,null,"平成27年法改正により追加"]
[55,"特定化学物質（第2類）","[特2]\n23の3","ニッケル化合物（24に掲げる物を除き、粉状の物に限る。）",null,"1重量%以下","○"]
[56,"特定化学物質（第2類）","[特2]24","ニッケルカルボニル",null,"1重量%以下","○",null,"劇物"]
[57,"特定化学物質（第2類）","[特2]\n25","ニトログリコール",null,"1重量%以下"]
[58,"特定化学物質（第2類）","[特2]\n26","p-ジメチルアミノアゾベンゼン",null,"1重量%以下","○"]
[59,"特定化学物質（第2類）","[特2]\n27","p-ニトロクロロベンゼン",null,"5重量%以下"]
[60,"特定化学物質（第2類）","[特2]\n27の2","砒素及びその化合物（アルシン及び砒化ガリウムを除く。）",null,"1重量%以下","○",null,"毒物","ヒ素"]
[61,"特定化学物質（第2類）","[特2]\n28","弗化水素",null,"5重量%以下",null,null,"毒物","フッ化水素"]
[62,"特定化学物質（第2類）","[特2]\n29","β-プロピオラクトン",null,"1重量%以下","○"]
[63,"特定化学物質（第2類）","[特2]\n30","ベンゼン",null,"1重量%以下","○"]
[64,"特定化学物質（第2類）","[特2]\n31","ペンタクロロフェノール及びそのナトリウム塩","PCP","1重量%以下","○",null,"劇物"]
[65,"特定化学物質（第2類）","[特2]\n31の2","ホルムアルデヒド",null,"1重量%以下","○",null,"劇物"]
[66,"特定化学物質（第2類）","[特2]32","マゼンタ",null,"1重量%以下","○"]
[67,"特定化学物質（第2類）","[特2]\n33","マンガン及びその化合物（塩基性酸化マンガンを除く。）",null,"1重量%以下"]
[68,"特定化学物質（第2類）","[特2]\n33の2","メチルイソブチルケトン",null,"1重量%以下","○","○",null,"1重量%を超える製剤は特別有機溶剤等"]
[69,"特定化学物質（第2類）","[特2]\n34","沃化メチル",null,"1重量%以下",null,null,"劇物","ヨウ化メチル"]
[70,"特定化学物質（第2類）","[特2]\n34の2","リフラクトリーセラミックファイバー","RCF","1重量%以下",null,null,null,"平成27年法改正により追加"]
[71,"特定化学物質（第2類）","[特2]\n35","硫化水素",null,"1重量%以下",null,null,"劇物"]
[72,"特定化学物質（第2類）","[特2]\n36","硫酸ジメチル",null,"1重量%以下",null,null,"劇物"]
[73,"特定化学物質（第2類）","[特2]\n37","エチルベンゼン、クロロホルム、四塩化炭素、1,4-ジオキサン、1,2-ジクロロエタン、1.2-ジクロロプロパン、ジクロロメタン、スチレン、1,1,2,2-テトラクロロエタン、テトラクロロエチレン、トリクロロエチレン、メチルイソブチルケトン又は有機溶剤を含有する製剤その他の物。ただし、次（右）に掲げるものを除く。\n　　　　　　　　　（略）",null,"イ　（特別有機溶剤等）\nロ　特別有機溶剤等の合計含有量が5重量%以下の製剤\nハ　有機則第1条第1項第2号に規定する有機溶剤含有物（イに掲げるものを除く。）"]
[74,"特定化学物質（第3類）","[特3]1","アンモニア",null,"1重量%以下",null,null,"劇物"]
[75,"特定化学物質（第3類）","[特3]2","一酸化炭素",null,"1重量%以下"]
[76,"特定化学物質（第3類）","[特3]3","塩化水素",null,"1重量%以下",null,null,"劇物"]
[77,"特定化学物質（第3類）","[特3]4","硝酸",null,"1重量%以下",null,null,"劇物"]
[78,"特定化学物質（第3類）","[特3]5","二酸化硫黄",null,"1重量%以下"]
[79,"特定化学物質（第3類）","[特3]6","フェノール",null,"5重量%以下",null,null,"劇物"]
[80,"特定化学物質（第3類）","[特3]7","ホスゲン",null,"1重量%以下",null,null,"劇物"]
[81,"特定化学物質（第3類）","[特3]8","硫酸",null,"1重量%以下",null,null,"劇物"]
[82,"有機溶剤（第2類）","[有]1","アセトン"]
[83,"有機溶剤（第2類）","[有]2","イソブチルアルコール"]
[84,"有機溶剤（第2類）","[有]3","イソプロピルアルコール"]
[85,"有機溶剤（第2類）","[有]4","イソペンチルアルコール","イソアミルアルコール"]
[86,"有機溶剤（第2類）","[有]5","エチルエーテル"]
[87,"有機溶剤（第2類）","[有]6","エチレングリコールモノエチルエーテル","セロソルブ"]
[88,"有機溶剤（第2類）","[有]7","エチレングリコールモノエチルエーテルアセテート","セロソルブアセテート"]
[89,"有機溶剤（第2類）","[有]8","エチレングリコールモノ-n-ブチルエーテル","ブチルセロソルブ"]
[90,"有機溶剤（第2類）","[有]9","エチレングリコールモノメチルエーテル","メチルセロソルブ"]
[91,"有機溶剤（第2類）","[有]10","o-ジクロロベンゼン"]
[92,"有機溶剤（第2類）","[有]11","キシレン",null,null,null,null,"劇物"]
[93,"有機溶剤（第2類）","[有]12","クレゾール",null,null,null,null,"劇物"]
[94,"有機溶剤（第2類）","[有]13","クロロベンゼン"]
[95,"有機溶剤（第1類）","[有]14","削除　特定化学物質（特別有機溶剤）に移行。",null,null,null,null,null,"クロロホルムのこと。"]
[96,"有機溶剤（第2類）","[有]15","酢酸イソブチル"]
[97,"有機溶剤（第2類）","[有]16","酢酸イソプロピル"]
[98,"有機溶剤（第2類）","[有]17","酢酸イソペンチル","酢酸イソアミル"]
[99,"有機溶剤（第2類）","[有]18","酢酸エチル",null,null,null,null,"劇物"]
[100,"有機溶剤（第2類）","[有]19","酢酸n-ブチル"]
[101,"有機溶剤（第2類）","[有]20","酢酸n-プロピル"]
[102,"有機溶剤（第2類）","[有]21","酢酸n-ペンチル","酢酸n-アミル"]
[103,"有機溶剤（第2類）","[有]22","酢酸メチル"]
[104,"有機溶剤（第1類）","[有]23","削除　特定化学物質（特別有機溶剤）に移行。",null,null,null,null,null,"四塩化炭素のこと。"]
[105,"有機溶剤（第2類）","[有]24","シクロヘキサノール"]
[106,"有機溶剤（第2類）","[有]25","シクロヘキサノン"]
[107,"有機溶剤（第2類）","[有]26","削除　特定化学物質（特別有機溶剤）に移行。",null,null,null,null,null,"1,4-ジオキサンのこと。"]
[108,"有機溶剤（第2類）","[有]27","削除　特定化学物質（特別有機溶剤）に移行。",null,null,null,null,null,"1,2-ジクロロエタンのこと。"]
[109,"有機溶剤（第1類）","[有]28","1,2-ジクロロエチレン","二塩化アセチレン"]
[110,"有機溶剤（第2類）","[有]29","削除　特定化学物質（特別有機溶剤）に移行。",null,null,null,null,null,"ジクロロメタンのこと。"]
[111,"有機溶剤（第2類）","[有]30","N,N-ジメチルホルムアミド"]
[112,"有機溶剤（第2類）","[有]31","削除　特定化学物質（特別有機溶剤）に移行。",null,null,null,null,null,"スチレンのこと。"]
[113,"有機溶剤（第1類）","[有]32","削除　特定化学物質（特別有機溶剤）に移行。",null,null,null,null,null,"1,1,2,2-テトラクロロエタンのこと。"]
[114,"有機溶剤（第2類）","[有]33","削除　特定化学物質（特別有機溶剤）に移行。",null,null,null,null,null,"テトラクロロエチレンのこと。"]
[115,"有機溶剤（第2類）","[有]34","テトラヒドロフラン"]
[116,"有機溶剤（第2類）","[有]35","1,1,1-トリクロロエタン"]
[117,"有機溶剤（第1類）","[有]36","削除　特定化学物質（特別有機溶剤）に移行。",null,null,null,null,null,"トリクロロエチレンのこと。"]
[118,"有機溶剤（第2類）","[有]37","トルエン",null,null,null,null,"劇物"]
[119,"有機溶剤（第1類）","[有]38","二硫化炭素",null,null,null,null,"劇物"]
[120,"有機溶剤（第2類）","[有]39","ノルマルヘキサン"]
[121,"有機溶剤（第2類）","[有]40","1-ブタノール"]
[122,"有機溶剤（第2類）","[有]41","2-ブタノール"]
[123,"有機溶剤（第2類）","[有]42","メタノール",null,null,null,null,"劇物"]
[124,"有機溶剤（第2類）","[有]43","削除　特定化学物質（特別有機溶剤）に移行。",null,null,null,null,null,"メチルイソブチルケトンのこと。"]
[125,"有機溶剤（第2類）","[有]44","メチルエチルケトン",null,null,null,null,"劇物"]
[126,"有機溶剤（第2類）","[有]45","メチルシクロヘキサノール"]
[127,"有機溶剤（第2類）","[有]46","メチルシクロヘキサノン"]
[128,"有機溶剤（第2類）","[有]47","メチル-n-ブチルケトン"]
[129,"有機溶剤（第3類）","[有]48","ガソリン"]
[130,"有機溶剤（第3類）","[有]49","コールタールナフサ（ソルベントナフサを含む。）"]
[131,"有機溶剤（第3類）","[有]50","石油エーテル"]
[132,"有機溶剤（第3類）","[有]51","石油ナフサ"]
[133,"有機溶剤（第3類）","[有]52","石油ベンジン"]
[134,"有機溶剤（第3類）","[有]53","テレビン油"]
[135,"有機溶剤（第3類）","[有]54","ミネラルスピリツト（ミネラルシンナー、ペトロリウムスピリツト、ホワイトスピリツト及びミネラルターペンを含む。）"]
[]
["有害ガス（歯科検診対象）"]
[200,null,null,"塩酸"]
[201,"特定化学物質（第3類）","[特3]4","硝酸"]
[202,"特定化学物質（第3類）","[特3]8","硫酸"]
[203,null,null,"亜硫酸"]
[204,"特定化学物質（第2類）","[特2]\n28","弗化水素"]
[205,"製造禁止物質","[禁]1","黄リン"]
[206,null,null,"その他歯又はその支持組織に有害な物"]